Workbook

Sheet Resultat
B1: Best Case scenario | C1: Worst Case scenario | D1: Boverket + trafikverket scenario | E1: Skillnad i worst - Best case scenario
A2: Påverkansfaktor | B2: CO2e [ton] | C2: CO2e [ton] | D2: CO2e [ton] | E2: CO2e [ton] | G2: Material | H2: CO2e
A3: Betong | B3: ='Material & Processer'!G7 -> 1393.02 | C3: =B39 -> 1893 | D3: =D40 -> 1548 | E3: =C3-B3 -> 499.98 | G3: =A3 -> Betong | H3: =B3 -> 1393.02
A4: Silo, galvat stål | B4: ='Material & Processer'!G12+Transporter!B17 -> 687.062076 | C4: =B40+Transporter!B18 -> 1962.607131 | D4: =D39+D44 -> 2348.079131 | E4: =C4-B4 -> 1275.545055 | G4: Maskiner & elektronik | H4: =B28 -> 706.8429146
A5: Armering | B5: ='Material & Processer'!G17 -> 311.64 | C5: =B41 -> 516.42 | D5: =D41 -> 539.22 | E5: 204.78 | G5: =A4 -> Silo, galvat stål | H5: =B4 -> 687.062076
A6: Asfalt | B6: ='Material & Processer'!M77 -> 108.8507597 | C6: =B43 -> 195.9583944 | D6: =D43 -> 253.596876 | E6: 87.10763463 | G6: =A5 -> Armering | H6: =B5 -> 311.64
A7: Drivmedel | B7: =Entreprenadmaskiner!B40+Transporter!E31 -> 49.04843563 | C7: =B42+B46 -> 316.8429708 | D7: =D42+D46 -> 316.8429708 | E7: 267.7945352 | G7: Konstruktionsstål | H7: =B10+B21 -> 645.0886879
A8: Krossning | B8: ='Material & Processer'!L41 -> 7.513820406 | C8: =B45 -> 50.11060991 | D8: =D45 -> 50.11060991 | E8: 42.5967895 | G8: Torkar & isoleringskassetter | H8: =B27 -> 231.7024
A9: Maskintorn: | G9: Asfalt | H9: =B6 -> 108.8507597
A10: Konstruktionsstål | B10: =Maskintorn!G8 -> 603.4925131 | C10: =B49 -> 619.9541995 | D10: =D49 -> 1057.293724 | E10: =C10-B10 -> 16.46168635 | G10: =A11 -> Sandwich paneler | H10: =B11 -> 140.7668605
A11: Sandwich paneler | B11: =Maskintorn!G18+Maskintorn!G23 -> 140.7668605 | C11: 216.8165968 | D11: 166.6429235 | E11: 76.04973637 | G11: =A12 -> Durkplåt och durkgaller | H11: =B12 -> 121.4758093
A12: Durkplåt och durkgaller | B12: =Maskintorn!G37+Maskintorn!G38 -> 121.4758093 | C12: 121.4758093 | D12: 137.7983392 | E12: 0 | G12: =A19 -> Stålplåt | H12: =B19 -> 55.26438019
A13: Trappor | B13: =Maskintorn!G48 -> 31.7940201 | C13: 31.7940201 | D13: 38.71766175 | E13: 0 | G13: Övrigt | H13: =B8+B13+B14+B15+B16+B17+B22+B23+B25+B24+B26+B7+B20 -> 189.8169051
A14: Takplåt (TRP) | B14: =Maskintorn!G30 -> 8.791832505 | C14: 8.791832505 | D14: 11.19778411 | E14: 0
A15: Isolering | B15: =Maskintorn!G29 -> 6.324224 | C15: 6.324224 | D15: 5.4936576 | E15: 0
A16: Ståldörrar | B16: =Maskintorn!G56 -> 3.711252226 | C16: 3.924255 | D16: 4.2384 | E16: 0.2130027735
A17: Räcken | B17: =Maskintorn!G60 -> 1.587566192 | C17: 1.587566192 | D17: 3.20766154 | E17: 0
A18: Tipphall:
A19: Stålplåt | B19: =Tipphall!G42 -> 55.26438019 | C19: =B59 -> 152.582976 | D19: =D59 -> 152.582976 | E19: =C19-B19 -> 97.31859581
A20: Takplåt | B20: =Tipphall!G32 -> 56.40998744 | C20: 56.40998744 | D20: =D60 -> 71.8470081 | E20: 0
A21: Konstruktionsstål (inkl.portomfattning) | B21: =Tipphall!G12+Tipphall!G25+Tipphall!G36 -> 41.59617475 | C21: 49.42373746 | D21: =D61 -> 57.08862144 | E21: 7.827562706
A22: Lättbalkar | B22: =Tipphall!G18 -> 7.276470526 | C22: 7.276470526 | D22: =D62 -> 9.171881712 | E22: 0
A23: Isolering | B23: =Tipphall!G29 -> 6.8868576 | C23: 6.8868576 | D23: =D64 -> 6.25638006 | E23: 0
A24: Dukport | B24: =Tipphall!G3 -> 6.42392424 | C24: 6.42392424 | D24: =D63 -> 6.42392424 | E24: 0
A25: Vikport | B25: =Tipphall!G5 -> 2.1530187 | C25: 2.1530187 | D25: =D65 -> 2.1530187 | E25: 0
A26: Ståldörr | B26: =Tipphall!G8 -> 1.895495566 | C26: 1.895495566 | D26: =D66 -> 1.69536 | E26: 0
A27: Tork och isoleringskassetter | B27: ='Maskiner, kringutr., elkabel'!G196 -> 231.7024 | C27: ='Maskiner, kringutr., elkabel'!G196 -> 231.7024 | D27: ='Maskiner, kringutr., elkabel'!G196 -> 231.7024 | E27: 0
A28: Maskiner, elektronik | B28: ='Maskiner, kringutr., elkabel'!G179 -> 706.8429146 | C28: ='Maskiner, kringutr., elkabel'!G179 -> 706.8429146 | D28: ='Maskiner, kringutr., elkabel'!G179 -> 706.8429146 | E28: 0
A29: Summa | B29: =SUM(B3:B28) -> 4591.530793 | C29: =SUM(C3:C28) -> 7167.205391 | D29: =SUM(D3:D28) -> 7726.204224 | E29: 2575.674598
A31: Topp 5 klimatpåverkan + drivmedel
A38: Påverkansfaktor | B38: CO2e [ton] | C38: Påverkansfaktor | D38: CO2e [ton]
A39: Betong | B39: ='Material & Processer'!G5 -> 1893 | C39: Silo, galvat stål | D39: ='Material & Processer'!G9 -> 2240
A40: Silo, galvat stål | B40: ='Material & Processer'!G13 -> 1854.528 | C40: Betong | D40: =('Material & Processer'!G3+'Material & Processer'!G4+'Material & Processer'!G5+'Material & Processer'!G6+'Material & Processer'!G7)/5 -> 1548
A41: Armering | B41: ='Material & Processer'!G20 -> 516.42 | C41: Armering | D41: ='Material & Processer'!G15 -> 539.22
A42: Entreprenadmaskiner | B42: =Entreprenadmaskiner!B41 -> 280.8021776 | C42: Entreprenadmaskiner | D42: =Entreprenadmaskiner!B41 -> 280.8021776
A43: Asfalt | B43: ='Material & Processer'!L76 -> 195.9583944 | C43: Asfalt | D43: ='Material & Processer'!G72 -> 253.596876
A44: Transporter (långa) | B44: =Transporter!B18 -> 108.0791307 | C44: Transporter (långa) | D44: =Transporter!B18 -> 108.0791307
A45: Krossning | B45: ='Material & Processer'!H41 -> 50.11060991 | C45: Krossning | D45: ='Material & Processer'!H41 -> 50.11060991
A46: Lokaltransporter | B46: =Transporter!B31 -> 36.0407932 | C46: Lokaltransporter | D46: =Transporter!B31 -> 36.0407932
A48: Maskintorn: | C48: Maskintorn:
A49: Konstruktionsstål | B49: =Maskintorn!G5 -> 619.9541995 | C49: Konstruktionsstål | D49: =Maskintorn!G12 -> 1057.293724
A50: Sandwich paneler | B50: =Maskintorn!G17+Maskintorn!G25 -> 216.8165968 | C50: Sandwich paneler | D50: =SUM(Maskintorn!G16:G19)/4+SUM(Maskintorn!G23:G25)/3 -> 166.6429235
A51: Durkplåt och durkgaller | B51: =Maskintorn!G39 -> 121.4758093 | C51: Durkplåt och durkgaller | D51: =Maskintorn!G40 -> 137.7983392
A52: Trappor | B52: =Maskintorn!G48 -> 31.7940201 | C52: Trappor | D52: =Maskintorn!G49 -> 38.71766175
A53: Takplåt (TRP) | B53: =Maskintorn!G30 -> 8.791832505 | C53: Takplåt (TRP) | D53: =Maskintorn!G33 -> 11.19778411
A54: Isolering | B54: =Maskintorn!G29 -> 6.324224 | C54: Isolering | D54: =Maskintorn!G32 -> 5.4936576
A55: Dörrar | B55: =Maskintorn!G57 -> 3.924255 | C55: Ståldörrar | D55: =Maskintorn!G55 -> 4.2384
A56: Räcken | B56: =Maskintorn!G60 -> 1.587566192 | C56: Räcken | D56: =Maskintorn!G61 -> 3.20766154
A58: Tipphall: | C58: Tipphall:
A59: Stålplåt | B59: =Tipphall!G40 -> 152.582976 | C59: Stålplåt | D59: =Tipphall!G40 -> 152.582976
A60: Takplåt (TRP) | B60: =Tipphall!G32 -> 56.40998744 | C60: Takplåt (TRP) | D60: =Tipphall!G31 -> 71.8470081
A61: Konstruktionsstål (inkl.portomfattning) | B61: =Tipphall!G11+Tipphall!G25+Tipphall!G36 -> 49.42373746 | C61: Konstruktionsstål (inkl.portomfattning) | D61: =Tipphall!G23+Tipphall!G15+Tipphall!G37 -> 57.08862144
A62: Lättbalkar | B62: =Tipphall!G18 -> 7.276470526 | C62: Lättbalkar | D62: =Tipphall!G20 -> 9.171881712
A63: Isolering | B63: =Tipphall!G29 -> 6.8868576 | C63: Dukport | D63: =Tipphall!G3 -> 6.42392424
A64: Dukport | B64: =Tipphall!G3 -> 6.42392424 | C64: Isolering | D64: =Tipphall!G28 -> 6.25638006
A65: Vikport | B65: =Tipphall!G5 -> 2.1530187 | C65: Vikport | D65: =Tipphall!G5 -> 2.1530187
A66: Ståldörr | B66: =Tipphall!G8 -> 1.895495566 | C66: Ståldörr | D66: =Tipphall!G7 -> 1.69536
A68: Summa: | B68: =SUM(B39:B65) -> 6226.764581 | C68: Summa: | D68: =SUM(D39:D65) -> 6785.963549
A77: Påverkansfaktor | B77: Ton CO2e | C77: % total klimatpåverkan | D77: Ton CO2e
A78: Betong | B78: =B3 -> 1393.02 | C78: =B78/B29*100 -> 30.3389014 | D78: =C3 -> 1893 | G78: Material | H78: CO2e
A79: =A28 -> Maskiner, elektronik | B79: =B28 -> 706.8429146 | C79: =B79/B29*100 -> 15.39449361 | D79: =C28 -> 706.8429146 | G79: Betong | H79: =C3 -> 1893
A80: =A4 -> Silo, galvat stål | B80: =B4 -> 687.062076 | C80: =B80/B29*100 -> 14.9636822 | D80: =C4 -> 1962.607131 | G80: Silo, galvat stål | H80: =C4 -> 1962.607131
A81: =A10 -> Konstruktionsstål | B81: =B10+B21 -> 645.0886879 | C81: =B81/B29*100 -> 14.04953417 | D81: =C10+C21 -> 669.3779369 | G81: Maskiner & elektronik | H81: =C28 -> 706.8429146
A82: =A5 -> Armering | B82: =B5 -> 311.64 | C82: =B82/B29*100 -> 6.787278884 | D82: =C5 -> 516.42 | G82: Konstruktionsstål | H82: =C10+C21 -> 669.3779369
A83: Drivmedel | B83: =66+'Material & Processer'!L41 -> 73.51382041 | D83: =425+'Material & Processer'!H41 -> 475.1106099 | G83: Armering | H83: =C5 -> 516.42
G84: Drivmedel | H84: =C7 -> 316.8429708
G85: Torkar & isoleringskassetter | H85: =C27 -> 231.7024
G86: Sandwich paneler | H86: =C11 -> 216.8165968
G87: Asfalt | H87: =C6 -> 195.9583944
G88: Stålplåt | H88: =C19 -> 152.582976
G89: Övrigt | H89: =C8+C13+C14+C15+C16+C17+C22+C23+C24+C26+C20+C12 -> 302.9010523

Sheet Klimateffektivitet
A1: Betong
A2: Alternativ | B2: Besparing CO2e ton | C2: kostnad | D2: Kr / ton CO2e
A3: Skanska | B3: ='Material & Processer'!G5-'Material & Processer'!G6 -> 401.82 | C3: 500000 | D3: =C3/B3 -> 1244.338261
A4: Skanska (från optionsvar) | B4: 472 | C4: 500000 | D4: =C4/B4 -> 1059.322034
A6: Asfalt
C7: Entreprenörs erbjudande (ton CO2e) | D7: Baslinje (ton CO2e) | E7: Besparing CO2e ton | F7: Baskostnad | G7: Besparing minskad yta | H7: Extra Kostnad | I7: Kr / ton CO2e | J7: volym [ton] | K7: Skillnad [ton] | L7: Extra kostnad per ton [kr/ton] | M7: Besparing kronor
A8: Best Case | B8: Hela ytan | C8: 0 | D8: ='Material & Processer'!L78 -> 253.596876 | E8: =D8-C8 -> 253.596876 | F8: 4000000 | G8: 0 | H8: 900000 | I8: =H8/E8 -> 3548.939617 | J8: ='Material & Processer'!J55 -> 4681.78848 | K8: =J8-J9 -> 747.225 | L8: =H8/J8 -> 192.2342293 | M8: =L8*K8 -> 143642.222
B9: Delyta | C9: 0 | D9: ='Material & Processer'!M78 -> 205.626876 | E9: =D9-C9 -> 205.626876 | F9: 4000000 | G9: =F9-F9/J8*J9 -> 638409.8754 | H9: 900000 | I9: =(H9-G9)/E9 -> 1272.159212 | J9: ='Material & Processer'!J56 -> 3934.56348
A10: Worst Case
B11: Hela ytan | C11: 0 | D11: =('Material & Processer'!L75+'Material & Processer'!L76+'Material & Processer'!L77)/3 -> 160.7381563 | E11: =D11-C11 -> 160.7381563 | F11: 4000000 | G11: 0 | H11: 900000 | I11: =H11/E11 -> 5599.168367
B12: Delyta | C12: 0 | D12: =('Material & Processer'!M75+'Material & Processer'!M76+'Material & Processer'!M77)/3 -> 134.7281391 | E12: =D12-C12 -> 134.7281391 | F12: 4000000 | G12: =F12-F12/J8*J9 -> 638409.8754 | H12: 900000 | I12: =(H12-G12)/E12 -> 1941.61462
A13: Sammanställning
A14: Process eller material | B14: Kommentar | C14: Kr / ton CO2e | E14: Totalkostnad
A15: Krossning, el | B15: El | C15: ='Material & Processer'!G51 -> -7241.042199 | D15: Krossning, el | E15: -149000
A16: Betong | B16: 30 % klimatförbättrad | C16: =D4 -> 1059.322034 | D16: Betong | E16: 500000
A17: Limträ | C17: 1500 | D17: Limträ | E17: =C17*(Resultat!C10+Resultat!C21-Maskintorn!G96-Tipphall!G53) -> 959800.325
A18: Transporter och entreprenadmaskiner | C18: 2000 | D18: Transporter och entreprenadmaskiner | E18: =C18*(Resultat!D83-Resultat!B83) -> 803193.579
A19: Asfalt, hel yta | B19: Hel yta, medelvärde av 3 | C19: =I11 -> 5599.168367 | D19: Asfalt, hel yta | E19: =I11*E11 -> 900000
A20: Asfalt, delyta | B20: Del yta, medelvärde av 3 | C20: =I12 -> 1941.61462 | D20: Asfalt, del yta | E20: =I12*E12 -> 261590.1246

Sheet Material & Processer
A1: Tillverkare | B1: Material | C1: Enhet | D1: Mängd [ton] | E1: Källa, mängd | F1: LCA CO2 (A1-A5) | G1: Tot CO2 [ton] | H1: A1 eller A1-A3 | I1: A2 | J1: A3 | K1: A4 | L1: A5 (byggspill/instal.) | M1: Länk EPD/källa | N1: EN15804 + A2
B2: BETONG
A3: Swerock | B3: Swerock Eco 3 | C3: Kg/m3 | D3: =6000 -> 6000 | E3: Tornum möte | F3: =SUM(H3:L3) -> 228.83 | G3: =F3*D3/1000 -> 1372.98 | H3: 214 | I3: 7.18 | J3: 1.12 | K3: 3.16 | L3: 3.37 | M3: https://www.epd-global.no/getfile.php/1331579-1680245714/EPDer/Byggevarer/Ferdig%20betong/NEPD-2637-1350_ECO-1--2--3-Sweexp55%281%29.pdf | N3: NEJ
A4: Sydsten | B4: C30/37 anläggning | C4: Kg/m3 | D4: =D3 -> 6000 | E4: =E3 -> Tornum möte | F4: =SUM(H4:L4) -> 264.97 | G4: =F4*D4/1000 -> 1589.82 | H4: =256 -> 256 | K4: 5.6 | L4: 3.37 | M4: https://www.sydsten.se/media/1274/epd-betong-med-anlaggningscement-fa.pdf | N4: NEJ
A5: Skanska | B5: Anläggning, ej klimatförbättr | C5: Kg/m3 | D5: 6000 | E5: =E3 -> Tornum möte | F5: =SUM(H5:K5) -> 315.5 | G5: =D5*F5/1000 -> 1893 | H5: 311.6 | K5: =3.9 -> 3.9 | L5: 3.37 | M5: https://www.epd-norge.no/getfile.php/139359-1537173252/EPDer/Byggevarer/Betongvarer/NEPD-1328-427_Frostbest--mdig-betong-med-Anl--ggning-FA_1.pdf | N5: NEJ
A6: Skanska | B6: Anläggning, grön btg C32/40 | C6: Kg/m3 | D6: =D3 -> 6000 | E6: =E3 -> Tornum möte | F6: =SUM(H6:K6) -> 248.53 | G6: =D6*F6/1000 -> 1491.18 | H6: =247.21 -> 247.21 | K6: 1.32 | L6: 3.37 | M6: mail | N6: Ja
A7: Thomas betong | B7: Anläggning C30/37 | C7: Kg/m3 | D7: =D3 -> 6000 | E7: =E3 -> Tornum möte | F7: =SUM(H7:L7) -> 232.17 | G7: =D7*F7/1000 -> 1393.02 | H7: 225 | K7: 3.8 | L7: 3.37 | M7: mail | N7: NEJ
B8: STÅL - galvaniserat
A9: Boverket | B9: Galvade ståprodukter | C9: kg/ton | D9: 640 | E9: Tornum möte | F9: =SUM(H9:J9)+L9 -> 3500 | G9: =(F9*D9/1000) -> 2240 | H9: 3330 | L9: 170 | M9: https://www.boverket.se/sv/klimatdeklaration/klimatdatabas/klimatdatabas/GetResourceByCategoryID/ | N9: NEJ
A10: Acciaieria Arvedi Spa | B10: Acciaieria Arvedi | D10: 640 | E10: =E9 -> Tornum möte | F10: =(SUM(H10:J10)+M110) -> 1124.6 | G10: =(F10*D10+K10)/1000 -> 719.744 | H10: =1120+4.6 -> 1124.6 | L10: =0.0119 -> 0.0119 | M10: https://api.environdec.com/api/v1/EPDLibrary/Files/7115321a-5f42-4b19-561f-08dbdfa90a02/Data | N10: JA
A11: ArcelorMittal | B11: Xcarb Mag.coat (310 g/m2 coat) | D11: 640 | E11: =E10 -> Tornum möte | F11: =SUM(H11:L11) -> 1070 | G11: =F11*D11/1000 -> 684.8 | H11: 900 | L11: 170 | M11: Andel av mängd (kg)
A12: ArcelorMittal | B12: Xcarb zink (310 g/m2 zink) | D12: 640 | E12: =E11 -> Tornum möte | F12: =SUM(H12:L12) -> 1046.967 | G12: =F12*D12/1000 -> 670.05888 | H12: =876+0.967 -> 876.967 | L12: 170 | M12: Mängd (ton)
A13: Dongkuk | D13: 640 | E13: =E12 -> Tornum möte | F13: =SUM(H13:L13) -> 2897.7 | G13: =F13*D13/1000 -> 1854.528 | H13: 2510 | I13: 15.7 | J13: 202 | K13: Oklar transport | L13: 170 | M13: https://api.environdec.com/api/v1/EPDLibrary/Files/60b0f30b-9ee4-4757-98f4-08db7e35bd3c/Data | N13: JA
B14: STÅL - armering
A15: Boverket | B15: Armering | C15: Kg/ton | D15: =6000*0.1 -> 600 | E15: Antagande, 100kg /m2 | F15: =SUM(H15:L15) -> 898.7 | G15: =F15*D15/1000 -> 539.22 | H15: 745 | K15: 79.5 | L15: 74.2
A16: BE Group | B16: Armering | C16: kg/ton | D16: =D15 -> 600 | E16: Antagande, 100kg /m4 | F16: =SUM(H16:L16) -> 501.83 | G16: 301.098 | H16: =338+19 -> 357 | K16: =77.1-6.47 -> 70.63 | L16: 74.2 | M16: https://api.environdec.com/api/v1/EPDLibrary/Files/409e111a-d6da-4faa-efd7-08d966bc9806/Data | N16: JA
A17: Celsa | B17: Armering | C17: Kg/ton | D17: =6000*0.1 -> 600 | E17: Antagande, 100kg /m3 | F17: 519.4 | G17: 311.64 | H17: =373+25 -> 398 | K17: =33.4+13.8 -> 47.2 | L17: 74.2 | M17: https://api.environdec.com/api/v1/EPDLibrary/Files/71eb954a-812e-4719-df44-08dbf085b35e/Data | N17: JA
A18: Stena Stål AB | B18: Armering | C18: kg/ton | D18: =D16 -> 600 | E18: Antagande, 100kg /m5 | F18: 579.6 | G18: 347.76 | H18: =4.73*10^2 -> 473 | K18: =3.24*10^1 -> 32.4 | L18: 74.2 | M18: https://api.environdec.com/api/v1/EPDLibrary/Files/6f91c939-1374-45ff-0309-08d8f01e26c9/Data | N18: NEJ
A19: Hellenic Halyvourgia S.A. | B19: Armering | C19: kg/ton | D19: 600 | E19: Antagande, 100kg /m5 | F19: 642.235566 | G19: 385.3413396 | H19: =213.3+1.11*10^-2 -> 213.3111 | I19: =3.558-4.534*10^-3 -> 3.553466 | J19: =222.854+48.817 -> 271.671 | K19: 79.5 | L19: 74.2 | N19: JA
A20: CMC | B20: Armering | C20: kg/ton | D20: 600 | E20: Antagande, 100kg /m5 | F20: 860.7 | G20: 516.42 | H20: 707 | K20: 79.5 | L20: 74.2 | M20: https://www.cmc.com/getmedia/09b46ae1-76a7-4c18-8bcc-73fdd0a50132/EPD-Concrete-Reinforcing-Steel-2020-Final.pdf | N20: NEJ
A21: Tata Group | B21: Armering | C21: kg/ton | D21: 600 | E21: Antagande, 100kg /m5 | F21: 2880.348944 | G21: 1728.209366 | H21: =(2.52*10^3)-(4.8*10^-1) -> 2519.52 | I21: =(2.16*10^0)-(6.56*10^-4) -> 2.159344 | J21: =(2.05*10^2)-(3.04*10^-2) -> 204.9696 | K21: 79.5 | L21: 74.2 | M21: https://api.environdec.com/api/v1/EPDLibrary/Files/7ee2c00f-0b06-4767-aba8-08da599e304a/Data | N21: JA
A22: Jindal | B22: Armering | C22: kg/ton | D22: =D20 -> 600 | E22: Antagande, 100kg /m5 | F22: 3596.7 | G22: 2158.02 | H22: =3480-29.4 -> 3450.6 | K22: 79.5 | L22: =33.8+32.8 -> 66.6 | M22: https://api.environdec.com/api/v1/EPDLibrary/Files/aef1f604-9bdc-4f9c-13ff-08dbca69748b/Data | N22: NEJ
B23: Krossverk
B24: Krossteg | C24: Mängd (ton) | D24: Andel | E24: Källa
B25: 1 | C25: 223172 | D25: 1 | E25: Rapport, NCC bergtäkt
B26: 2 | C26: 186437 | D26: =C26/C25 -> 0.8353960174
B27: 3 | C27: 112443 | D27: =C27/C25 -> 0.5038400875
B29: Typ av arbete | D29: Mängd (m3) | E29: Vikt (ton)
A30: Företag | B30: Transport av maksiner till plats | C30: kg CO2e | D30: m3 | E30: Ton | F30: Källa | G30: kg CO2/ton material | H30: Utsläpp ton co2 | I30: Liter diesel | J30: HVO ton co2 | K30: kWh el | L30: C02e HVO + el [ton] | M30: kWh/ton | N30: kWh tot | O30: diesel liter | P30: Källa
A31: NCC (rapport) | B31: Borrning | C31: kg CO2e | D31: =17300/2 -> 8650 | E31: =3*D31 -> 25950 | F31: Tornum | G31: =9055/223172 -> 0.04057408635 | H31: =G31*E31/1000 -> 1.052897541 | I31: =H31/$L$46*1000 -> 446.9004843 | J31: =I31*$L$47/1000 -> 0.1595434729 | L31: =J31 -> 0.1595434729 | P31: Rapport, NCC bergtäkt
A32: NCC (rapport) | B32: Sprängmedel | C32: kg CO2e | D32: =17300/2 -> 8650 | E32: =3*D32 -> 25950 | F32: Tornum | G32: =10364/223172 -> 0.0464395175 | H32: 1.205105479 | J32: =H32 -> 1.205105479 | L32: =J32 -> 1.205105479
A33: NCC (rapport) | B33: Skutknack | C33: kg CO2e | D33: =17300/2 -> 8650 | E33: =3*D33 -> 25950 | F33: Tornum | G33: =11430/223172 -> 0.05121610238 | H33: 1.329057857 | I33: =H33/$L$46*1000 -> 564.116238 | J33: =I33*$L$47/1000 -> 0.201389497 | L33: 0.201389497
A34: NCC (rapport) | B34: Krossteg 1 | C34: kg CO2e | D34: =17300/2 -> 8650 | E34: =3*D34 -> 25950 | F34: Tornum | G34: =56398/223172 -> 0.2527109136 | H34: 6.557848207 | I34: 2783.466981 | J34: 0.9936977121 | K34: =I34*$M$46*0.35/0.85 -> 11238.47534 | L34: =K34*L48/1000 -> 0.2922003589 | M34: 0.98 | N34: =E34*M34 -> 25431 | O34: =N34/9.81 -> 2592.35474
A35: NCC (rapport) | B35: Krossteg 2 | C35: kg CO2e | D35: =17300/2*D26 -> 7226.175551 | E35: =D35*3 -> 21678.52665 | F35: Tornum | G35: =87025/223172 -> 0.3899458713 | H35: 8.453451965 | I35: 3588.052617 | J35: 1.280934784 | K35: =I35*$M$46*0.35/0.85 -> 14487.05558 | L35: =K35*L48/1000 -> 0.3766634451 | M35: 1.8 | N35: =M35*E35 -> 39021.34797 | O35: =N35/9.81 -> 3977.711312
A36: NCC (rapport) | B36: Krossteg 3 | C36: kg CO2e | D36: =D34*D27 -> 4358.216757 | E36: =D36*3 -> 13074.65027 | F36: Tornum | G36: =111885/223172 -> 0.5013397738 | H36: 6.554842209 | I36: 2782.19109 | J36: 0.9932422193 | K36: =I36*$M$46*0.35/0.85 -> 11233.32383 | L36: =K36*L48/1000 -> 0.2920664196 | M36: 4.56 | N36: =M36*E36 -> 59620.40523 | O36: =N36/9.81 -> 6077.513275
A37: NCC (rapport) | B37: Transport krossteg 1 | C37: kg CO2e | D37: =D31 -> 8650 | E37: =D37*3 -> 25950 | F37: Tornum | G37: =145545/223172 -> 0.6521651462 | H37: 16.92368554 | I37: 7183.228159 | J37: 2.564412453 | L37: =J37 -> 2.564412453 | N37: =SUM(N34:N36) -> 124072.7532
A38: NCC (rapport) | B38: Transport krossteg 2 | C38: kg CO2e | D38: =D31*D26 -> 7226.175551 | E38: =D38*3 -> 21678.52665 | F38: Tornum | G38: =53851/223172 -> 0.2412981915 | H38: 5.230989276 | I38: 2220.284073 | J38: 0.7926414141 | L38: =J38 -> 0.7926414141
A39: NCC (rapport) | B39: Transport krossteg 3 | C39: kg CO2e | D39: =D31*D27 -> 4358.216757 | E39: =D39*3 -> 13074.65027 | F39: Tornum | G39: =47840/223172 -> 0.2143638091 | H39: 2.802731834 | I39: 1189.614531 | J39: 0.4246923874 | L39: 0.4246923874
F41: Summa: | G41: =SUM(G31:G39) -> 2.390053412 | H41: =SUM(H31:H39) -> 50.11060991 | I41: =SUM(I31:I39) -> 20757.85417 | J41: =I41*$L$47/1000+H32 -> 8.615659419 | L41: =SUM(L31:L39)+H32 -> 7.513820406
A42: Fördelning över krossteg, kostnad för diesel och CO2e besparing för krossmaskin
B44: Liter | C44: Pris | D44: Total pris | E44: Skillnad | F44: CO2e besparing | G44: kr/ton CO2e besparing | K44: CO2e utsläpp - olika energikällor
A45: HVO | B45: =I41/N47 -> 21551.53683 | C45: =21.84 -> 21.84 | D45: =C45*B45 -> 470685.5644 | E45: =D45-D46 -> 82721.26993 | F45: =H41-J41 -> 41.49495049 | G45: =E45/(H41-J41) -> 1993.526175 | L45: Utsläpp | M45: Energiinnehåll kWh/l | N45: Relativt energiinnehåll till diesel
A46: Diesel | B46: =I41 -> 20757.85417 | C46: 18.69 | D46: =C46*B46 -> 387964.2945 | E46: =-E45 -> -82721.26993 | F46: =J41-H41 -> -41.49495049 | K46: Diesel MK1 kg CO2e/liter | L46: 2.356 | M46: =35.3/3.6 -> 9.805555556
K47: HVO100 kg CO2e/liter | L47: 0.357 | M47: =34/3.6 -> 9.444444444 | N47: =M47/M46 -> 0.9631728045
A48: Energikälla | B48: Liter eller kWh | C48: kr/l, kr/kWh | D48: Total kostnad | E48: Extra kostnad | F48: Sparad CO2e ton | G48: Kr / CO2e | K48: El (mix) kg/kWh | L48: =26/1000 -> 0.026
A49: Diesel | B49: =B46 -> 20757.85417 | C49: =C46 -> 18.69 | D49: =D46 -> 387964.2945 | K49: Diesel MK1 kg CO2e/kWh | L49: =1/M46*L46 -> 0.2402719547
A50: HVO | B50: =B45 -> 21551.53683 | C50: =C45 -> 21.84 | D50: =D45 -> 470685.5644 | E50: =D50-D49 -> 82721.26993 | F50: =H41-J41 -> 41.49495049 | G50: =E50/F50 -> 1993.526175 | K50: HVO100 kg CO2e/kWh | L50: =L47*1/M47 -> 0.0378
A51: El | B51: =SUM(K34:K36) -> 36958.85475 | C51: 0.592 | D51: =C51*B51 -> 21879.64201 | E51: =D51-SUM(I34:I36)*C49 -> -149203.2107 | F51: =SUM(H34:H36)-SUM(L34:L36) -> 20.60521216 | G51: =E51/F51 -> -7241.042199
A52: HVO + el | B52: =(SUM(I31:I33)+SUM(I37:I39))/N47*M46+SUM(K34:K36) -> 155094.5341 | D52: =SUM(I31:I33+I37:I39)*C50/N47+B51*C51 -> 285004.2781 | E52: =D52-D49 -> -102960.0164 | F52: =H41-SUM(L34:L36)-SUM(J31:J33)-SUM(J37:J39) -> 43.80189498 | G52: =E52/F52 -> -2350.583608
A53: Asfalt
A54: Case | B54: Yta [m2] | C54: Bundet bärlager [m] | D54: Bindlager [m] | E54: Slitlager [m] | F54: Antagen densitet [ton/m3] | G54: Mängd AG [ton] | H54: Mängd ABB [ton] | I54: Mängd ABS [ton] | J54: Total mängd [ton] | K54: Lastbil [ton]
A55: Hela ytan | B55: =25700-62.6*76.4-92.3*(142.8-92.3) -> 16256.21 | C55: =40/1000 -> 0.04 | D55: =40/1000 -> 0.04 | E55: 0.04 | F55: 2.4 | G55: =C55*B55*F55 -> 1560.59616 | H55: =D55*B55*F55 -> 1560.59616 | I55: =E55*B55*F55 -> 1560.59616 | J55: =SUM(G55:I55) -> 4681.78848 | K55: 30
A56: Mindre delar av ytan | B56: =B55-70^2/2-50*25/2 -> 13181.21 | C56: =40/1000 -> 0.04 | D56: =40/1000 -> 0.04 | E56: 0.04 | F56: 2.4 | G56: =C56*B56*F56 -> 1265.39616 | H56: =D56*B56*F56 -> 1265.39616 | I56: =E56*B56*F56+B75 -> 1403.77116 | J56: =SUM(G56:I56) -> 3934.56348
A57: Utsläpp asfalt | D57: Hela ytan | E57: Mindre delar | F57: Hela ytan | G57: Mindre delar | H57: Hela ytan | I57: Mindre delar
A58: Fabrikat | B58: Typ | C58: A1-A3 [kg/ton] | D58: A4 [ton] | E58: A4 [ton] | F58: A5 [ton] | G58: A5 [ton] | H58: Total [ton] | I58: Total [ton] | J58: B1 [ton] | K58: B2 [ton] | L58: Länk
A59: NCC | B59: AG - 16 | C59: 20 | D59: =$J$55/$K$55*Transporter!B7*12*2/1000 -> 3.059734717 | E59: =$J$56/$K$55*Transporter!B7*12*2/1000 -> 2.571393502 | F59: =0.81*$B$55/1000 -> 13.1675301 | G59: =0.81*$B$56/1000 -> 10.6767801 | H59: =C59*G55/1000+F59+D59 -> 47.43918802 | I59: =C59*G56/1000+G59+D59 -> 39.04443802 | L59: NCC
A60: NCC | B60: ABB - 16 | C60: =20 -> 20 | D60: =$J$55/$K$55*Transporter!B7*12*2/1000 -> 3.059734717 | E60: =$J$56/$K$55*Transporter!B7*12*2/1000 -> 2.571393502 | F60: =0.81*$B$55/1000 -> 13.1675301 | G60: =0.81*$B$56/1000 -> 10.6767801 | H60: =C60*H55/1000+F60+D60 -> 47.43918802 | I60: =C60*H56/1000+G60+D60 -> 39.04443802 | L60: NCC
A61: NCC | B61: ABS - 16 | C61: =28 -> 28 | D61: =$J$55/$K$55*Transporter!B7*12*2/1000 -> 3.059734717 | E61: =$J$56/$K$55*Transporter!B7*12*2/1000 -> 2.571393502 | F61: =0.81*$B$55/1000 -> 13.1675301 | G61: =0.81*$B$56/1000 -> 10.6767801 | H61: =C61*I55/1000+F61+D61 -> 59.9239573 | I61: =C61*I56/1000+G61+D61 -> 53.0421073 | L61: NCC
A62: Summa | H62: =SUM(H59:H61) -> 154.8023333 | I62: =SUM(I59:I61) -> 131.1309833 | J62: =H62-I62 -> 23.67135 | K62: =N75 -> 23.67135
A63: Peab | B63: AG - 16 | C63: 26.2 | D63: =$J$55/$K$55*Transporter!B7*50/1000 -> 6.374447327 | E63: =$J$56/$K$55*Transporter!B7*50/1000 -> 5.357069796 | F63: =0.81*$B$55/1000 -> 13.1675301 | G63: =0.81*$B$56/1000 -> 10.6767801 | H63: =C63*G55/1000+F63+D63 -> 60.42959682 | I63: =C63*G56/1000+G63+E63 -> 49.18722929 | L63: PEAB
A64: Peab | B64: ABB - 22 | C64: 27.5 | D64: =$J$55/$K$55*Transporter!B7*50/1000 -> 6.374447327 | E64: =$J$56/$K$55*Transporter!B7*50/1000 -> 5.357069796 | F64: =0.81*$B$55/1000 -> 13.1675301 | G64: =0.81*$B$56/1000 -> 10.6767801 | H64: =C64*H55/1000+F64+D64 -> 62.45837183 | I64: =C64*H56/1000+G64+E64 -> 50.8322443 | L64: PEAB
A65: Peab | B65: ABS - 11 | C65: 34.3 | D65: =$J$55/$K$55*Transporter!B7*50/1000 -> 6.374447327 | E65: =$J$56/$K$55*Transporter!B7*50/1000 -> 5.357069796 | F65: =0.81*$B$55/1000 -> 13.1675301 | G65: =0.81*$B$56/1000 -> 10.6767801 | H65: =C65*I55/1000+F65+D65 -> 73.07042571 | I65: =C65*I56/1000+G65+E65 -> 64.18320068 | L65: PEAB
A66: Summa | H66: =SUM(H63:H65) -> 195.9583944 | I66: =SUM(I63:I65) -> 164.2026743 | J66: =H66-I66 -> 31.75572009 | K66: =N76 -> 31.75572009
A67: Skanska | B67: AG - 16 | C67: 16.9 | D67: =D63 -> 6.374447327 | E67: 5.357069796 | F67: =0.81*$B$55/1000 -> 13.1675301 | G67: =0.81*$B$56/1000 -> 10.6767801 | H67: =C67*G55/1000+F67+D67 -> 45.91605253 | I67: =C67*$G$56/1000+G67+E67 -> 37.419045 | L67: Skanska
A68: Skanska | B68: ABB - 100 | C68: 17.5 | D68: 6.374447327 | E68: 5.357069796 | F68: =0.81*$B$55/1000 -> 13.1675301 | G68: =0.81*$B$56/1000 -> 10.6767801 | H68: =C68*$H$55/1000+F68+D68 -> 46.85241023 | I68: =C68*H56/1000+G68+E68 -> 38.1782827 | L68: Skanska
A69: Skanska | B69: ABS | C69: =15.6+0.58+0.102-4.02+0.000439+0.00422 -> 12.266659 | D69: 6.374447327 | E69: 5.357069796 | F69: =0.81*$B$55/1000 -> 13.1675301 | G69: =0.81*$B$56/1000 -> 10.6767801 | H69: =C69*$I$55/1000+F69+D69 -> 38.68527836 | I69: =C69*I56/1000+G69+E69 -> 33.25343203 | L69: Skanska
A70: Summa | H70: =SUM(H67:H69) -> 131.4537411 | I70: =SUM(I67:I69) -> 108.8507597 | J70: =H70-I70 -> 22.60298139 | K70: =N77 -> 22.60298139
A71: Fabrikat | B71: Typ | C71: A1-A3 [kg/m2] | D71: A4 [kg/m2] | E71: A5 [kg/m2] | F71: A1-A5 [kg/m2] | G71: Hela ytan total [ton] | H71: Mindre delar [ton]
A72: Trafikverket | B72: Asfalt 120mm | C72: 13.19 | D72: 1.6 | E72: 0.81 | F72: =SUM(C72:E72) -> 15.6 | G72: =F72*B55/1000 -> 253.596876 | H72: =B56*F72/1000 -> 205.626876
A73: Tunnare asfalt
A74: Yta m2 | B74: m3 | C74: Mängd [ton] | D74: Fabrikat | E74: Typ | F74: A1-A3 (kg/ton) | G74: A4 [ton] | H74: A5 (utläggning/spill) | I74: Ton CO2e (hela ytan) | J74: Ton CO2e (mindre) | K74: Fabrikör | L74: Tot CO2e hel yta [ton] | M74: Tot CO2e del yta [ton] | N74: Besparning [ton]
A75: =B55-B56 -> 3075 | B75: =(B55-B56)*0.045 -> 138.375 | C75: =B75*F55 -> 332.1 | D75: NCC | E75: ABS - 16 | F75: 26 | G75: =$C$75/$K$55*Transporter!B7*12*2/1000 -> 0.2170405399 | H75: =0.81*A75/1000 -> 2.49075 | I75: =H75+G75+F75*$C$75/1000 -> 11.34239054 | K75: NCC | L75: =H62 -> 154.8023333 | M75: =I62 -> 131.1309833 | N75: =L75-M75 -> 23.67135
D76: PEAB | E76: ABS - 16 | F76: =C65 -> 34.3 | G76: =$C$75/$K$55*Transporter!B7*50/1000 -> 0.4521677915 | H76: =0.81*A75/1000 -> 2.49075 | I76: =H76+G76+F76*$C$75/1000 -> 14.33394779 | K76: PEAB | L76: =H66 -> 195.9583944 | M76: =I66 -> 164.2026743 | N76: =L76-M76 -> 31.75572009
D77: Skanska | E77: ABS - 17 | F77: =C69 -> 12.266659 | G77: =$C$75/$K$55*Transporter!B7*50/1000 -> 0.4521677915 | H77: =0.81*A75/1000 -> 2.49075 | I77: =H77+G77+F77*$C$75/1000 -> 7.016675245 | K77: SKANSKA | L77: =H70 -> 131.4537411 | M77: =I70 -> 108.8507597 | N77: =L77-M77 -> 22.60298139
K78: Trafikverket | L78: =G72 -> 253.596876 | M78: =H72 -> 205.626876 | N78: =L78-M78 -> 47.97

Sheet Maskintorn
A1: Stålpelare och stålbalkar | R1: Mängdning pelare
A2: Tillverkare | B2: Material | C2: Funkti. enhet | D2: Mängd [ton] | E2: Källa, mängd | F2: A1-A5 | G2: Tot CO2 [ton] | H2: A1 (A1-A3) | I2: A2 | J2: A3 | K2: A4 | L2: A4 km | M2: A5 (byggspill/instal.) | P2: A2
A3: Tibnor | B3: VKR | C3: kg CO2e/ton | D3: =V4+S8*T8*U8*V8/1000 -> 226.877328 | E3: Ritningar | F3: =H3+K3 -> 2.6526 | G3: =D3*F3 -> 601.8148003 | H3: 2.6 | K3: =0.0526 -> 0.0526 | M3: =0.00000682 -> 6.82e-06 | O3: tibnor VKR | P3: Nej | R3: Antal | S3: Längd | T3: Profil VKR | U3: kg/m | V3: vikt ton | W3: Källa
A4: Tibnor | B4: H/I profil | C4: kg CO2e/ton | D4: =(Y8*Z8+W8*X8)/1000 -> 15.2496 | E4: Ritningar | F4: =H4+K4 -> 1.1895 | G4: =D4*F4 -> 18.1393992 | H4: 1.15 | K4: =0.0395 -> 0.0395 | M4: =0.00000682 -> 6.82e-06 | O4: tibnor H/I | P4: Nej | R4: 24 | S4: 38.562 | T4: 350x350 | U4: 131 | V4: =R4*S4*U4/1000 -> 121.238928 | W4: https://www.tibnor.se/medias/konstruktionstabellerSWE-2023.pdf?context=bWFzdGVyfHJvb3R8MzE0ODU1NnxhcHBsaWNhdGlvbi9wZGZ8aDFhL2gwZi85MTEwNDM1ODIzNjQ2L2tvbnN0cnVrdGlvbnN0YWJlbGxlclNXRS0yMDIzLnBkZnxkZjllN2E2MzBjOGIyOTBhNDkyYTQ5ZGIwY2NiYTllMzAxNjdiN2VmZWZhZGY3MTFiZmRjMDBkMTdlYmY1NDQx
A5: Summa | G5: =G3+G4 -> 619.9541995 | R5: Mängdning Balkar
A6: Stena stål | B6: VKR | C6: kg CO2e/ton | D6: =D3 -> 226.877328 | E6: Ritningar | F6: =H6+K7+M6 -> 2.61250682 | G6: =D6*F6 -> 592.7185667 | H6: 2.58 | K6: =0.0325 -> 0.0325 | M6: =M4 -> 6.82e-06 | O6: Stena VKR | P6: Nej
A7: Stena stål | B7: H/I profil | C7: kg CO2e/ton | D7: =D4 -> 15.2496 | E7: Ritningar | F7: =H7+K7+M7 -> 0.70650682 | G7: =D7*F7 -> 10.7739464 | H7: 0.674 | K7: =0.0325 -> 0.0325 | M7: =M4 -> 6.82e-06 | O7: Stena Stål | R7: Profil VKR | S7: Antal per våning | T7: Längd | U7: kg/m | V7: Våningar | W7: kg/m (HEA360) | X7: Längd total | Y7: kg/m IPE360) | Z7: Längd total | AA7: Vikt ton
A8: Summa | G8: =G6+G7 -> 603.4925131 | R8: 350x350 | S8: 8 | T8: =15.1-0.7 -> 14.4 | U8: 131 | V8: 7 | W8: =112 -> 112 | X8: =16*8 -> 128 | Y8: 57.1 | Z8: 16 | AA8: =(S8*T8*U8*V8+W8*X8+Y8*Z8)/1000 -> 120.888
A9: Stena stål | B9: Återbrukat | C9: kg CO2e/ton | D9: =D10 -> 242.126928 | E9: Ritningar | F9: =H9+K9+M9 -> 0.06920682 | G9: =D9*F9 -> 16.75683472 | H9: =0.0532 -> 0.0532 | K9: 0.016 | M9: =M7 -> 6.82e-06 | O9: Stena, återbrukat | P9: Nej
A10: Boverket | B10: stål (100% skrot) | C10: kg CO2e/ton | D10: =$V$4+$AA$8 -> 242.126928 | E10: Ritningar | F10: =SUM(H10:M10) -> 1.2697 | G10: =F10*D10 -> 307.4285605 | H10: 1.13 | K10: 0.0795 | M10: 0.0602 | O10: Boverket
A11: Boverket | B11: stål (80% skrot) | C11: kg CO2e/ton | D11: =$V$4+$AA$8 -> 242.126928 | E11: Ritningar | F11: =SUM(H11:M11) -> 3.3905 | G11: =F11*D11 -> 820.9313494 | H11: 3.15 | K11: 0.0795 | M11: 0.161 | O11: Boverket
A12: Viktat värde (KKR och HEA, boverket) | G12: =D6*F11+D6*F10 -> 1057.293724
A14: Sandwich paneler 200mm
A15: Tillverkare | B15: Material | C15: Funkti. enhet | D15: Mängd [m2] | E15: Källa, mängd | F15: A1-A5 | G15: Tot CO2 [ton] | H15: A1 (A1-A3) | I15: A2 | J15: A3 | K15: A4 | L15: A4 km | M15: A5 (byggspill/instal.)
A16: Planja (Ruuki) | B16: Mineralull | C16: kg CO2e/m2 | D16: =T19+U19 -> 2452.576 | E16: Ritningar | F16: =SUM(H16:M16) -> 45.561 | G16: =F16*D16/1000 -> 111.7418151 | H16: 38.6 | K16: 0.321 | M16: 6.64 | O16: Plannja (Ruuki) | Q16: Mängdning utvändiga sandwichpaneler
A17: Bewi | B17: Mineralull | C17: kg CO2e/m2 | D17: =T19+U19 -> 2452.576 | E17: Ritningar | F17: =SUM(H17:M17) -> 74.7105 | G17: =F17*D17/1000 -> 183.2331792 | H17: =65.5+1.53 -> 67.03 | K17: =1.04+0.0005 -> 1.0405 | M17: 6.64 | O17: Bewi, mineralull
A18: Ruuki | B18: Mineralull | C18: kg CO2e/m2 | D18: =T19+U19 -> 2452.576 | E18: Ritningar | F18: =SUM(H18:M18) -> 45.13 | G18: =F18*D18/1000 -> 110.6847549 | H18: 36.6 | K18: 1.89 | M18: 6.64 | O18: Ruuki | R18: Höjd [m] | S18: Bredd [m] | T18: Area [m2] | U18: extra vid tak (m2)
A19: Lindab | B19: Mineralull | C19: kg CO2e/m2 | D19: =T19+U19 -> 2452.576 | E19: Ritningar | F19: =SUM(H19:M19) -> 55.36732 | G19: =F19*D19/1000 -> 135.7925602 | H19: =52.2-2.82 -> 49.38 | K19: =5.78+0.00232 -> 5.78232 | M19: =0.205 -> 0.205 | O19: Lindab | R19: 37.6 | S19: 16 | T19: =S19*R19*4 -> 2406.4 | U19: =(38.562-37.6)*16*2+(38.562-37.6)*16 -> 46.176
A20: Boverket | B20: - | C20: - | D20: - | E20: - | F20: - | G20: -
A21: Sandwich paneler 150mm
A22: Tillverkare | B22: Material | C22: Funkti. enhet | D22: Mängd [m2] | E22: Källa, mängd | F22: A1-A5 | G22: Tot CO2 [ton] | H22: A1 (A1-A3) | I22: A2 | J22: A3 | K22: A4 | L22: A4 km | M22: A5 (byggspill/instal.)
A23: Ruuki | B23: Mineralull | C23: kg CO2e/m2 | D23: =$U$27 -> 729.44 | E23: Ritningar | F23: =SUM(H23:M23) -> 41.24 | G23: =F23*D23/1000 -> 30.0821056 | H23: 33.9 | K23: 1.55 | M23: 5.79 | O23: Ruuki | Q23: Mängdning sandwichpaneler hiss och trappa
A24: Planja (Ruuki) | B24: Mineralull | C24: kg CO2e/m2 | D24: =$U$27 -> 729.44 | E24: Ritningar | F24: =SUM(H24:M24) -> 41.366 | G24: =F24*D24/1000 -> 30.17401504 | H24: 35.3 | K24: 0.276 | M24: 5.79 | O24: Plannja (Ruuki)
A25: Lindab | B25: Mineralull | C25: kg CO2e/m2 | D25: =$U$27 -> 729.44 | E25: Ritningar | F25: 46.04 | G25: =F25*D25/1000 -> 33.5834176 | H25: =37.9-1.82+(H19-37.9-1.82)/2 -> 40.91 | K25: =3.79 -> 3.79 | M25: 1.34 | O25: Lindab | R25: Höjd [m] | S25: Bredd [m] | T25: Area [m2]
A26: Boverket | B26: - | C26: - | D26: - | E26: - | F26: - | G26: - | Q26: trappa | R26: =R19 -> 37.6 | S26: 12 | T26: =S26*R26 -> 451.2
A27: Tak (TRP plåt och isolering) | Q27: hiss | R27: 37.6 | S27: =3.7*2 -> 7.4 | T27: =S27*R27 -> 278.24 | U27: =T27+T26 -> 729.44
A28: Tillverkare | B28: Material | C28: Funkti. enhet | D28: Mängd [ton] | E28: Källa, mängd | F28: A1-A5 | G28: Tot CO2 [ton] | H28: A1 (A1-A3) | I28: A2 | J28: A3 | K28: A4 | L28: A4 km | M28: A5 (byggspill/instal.)
A29: Knauf | B29: Mineralull | C29: kg CO2e/kg | D29: =0.2*T32*90/1000 -> 4.608 | E29: Tornum | F29: =SUM(H29:M29)/9 -> 1.372444444 | G29: =F29*D29 -> 6.324224 | H29: =9.26 -> 9.26 | K29: 0.672 | M29: 2.42 | O29: KnaufMineralull | R29: Mängdning Tak
A30: Lindab | B30: TRP plåt (galvad) | C30: kg CO2e/kg | D30: =(120/9.82)*T32/1000 -> 3.128309572 | E30: Tornum | F30: =SUM(H30:M30) -> 2.81041 | G30: =F30*D30 -> 8.791832505 | H30: 2.76 | K30: 0.0488 | M30: 0.00161
A31: Summa | G31: =G29+G30 -> 15.11605651 | R31: Längd | S31: Bredd | T31: Area [m2]
A32: Boverket | B32: Mineralull | C32: kg CO2e/kg | D32: =D29 -> 4.608 | E32: Tornum | F32: =SUM(H32:M32) -> 1.1922 | G32: =F32*D32 -> 5.4936576 | H32: 1.08 | K32: 0.0345 | M32: 0.0777 | O32: Lindab | R32: 16 | S32: 16 | T32: =S32*R32 -> 256
A33: Boverket | B33: Galvad stålpr | C33: kg CO2e/kg | D33: =D30 -> 3.128309572 | E33: Tornum | F33: =SUM(H33:M33) -> 3.5795 | G33: =F33*D33 -> 11.19778411 | H33: 3.33 | K33: 0.0795 | M33: 0.17
A34: Summa | G34: =G32+G33 -> 16.69144171
A35: Bjälklag (durkplåt och galler) | Q35: Mängdning gallerdurk/plåt
A36: Tillverkare | B36: Material | C36: Funkti. enhet | D36: Mängd [ton] | E36: Källa, mängd | F36: A1-A5 | G36: Tot CO2 [ton] | H36: A1 (A1-A3) | I36: A2 | J36: A3 | K36: A4 | L36: A4 km | M36: A5 (byggspill/instal.)
A37: Weland | B37: Gallerdurk | C37: kg CO2e/kg | D37: =18*T39/1000 -> 21.67236 | E37: Ritningar | F37: =SUM(H37:M37) -> 3.1555 | G37: =F37*D37 -> 68.38713198 | H37: =2.63+0.276 -> 2.906 | K37: 0.0795 | M37: 0.17 | O37: Weland
A38: BE group/weland | B38: Tårplåt | C38: kg CO2e/kg | D38: =T40*S42/1000 -> 16.8241728 | E38: Ritningar | F38: =SUM(H38:N38) -> 3.1555 | G38: =F38*D38 -> 53.08867727 | H38: =2.63+0.276 -> 2.906 | K38: 0.0795 | M38: 0.17 | O38: BeGroup vikt | R38: Längd | S38: Bredd | T38: Area [m2] | V38: Weland vikter
A39: Summa | G39: =G37+G38 -> 121.4758093 | Q39: Gallerdurk | R39: 15.2 | S39: 15.2 | T39: =(S39*R39-2.5*8.3-2.6*3.7)*6 -> 1204.02 | V39: Weland vikter
A40: Boverket | B40: Galvaniserade produkter | C40: kg CO2e/kg | D40: =18*T39/1000+D38 -> 38.4965328 | E40: Ritningar | F40: =SUM(H40:N40) -> 3.5795 | G40: =F40*D40 -> 137.7983392 | H40: 3.33 | K40: 0.0795 | M40: 0.17 | Q40: Tårplåt | R40: 15.2 | S40: 15.2 | T40: =(S40*R40-2.5*8.3-2.6*3.7)*2 -> 401.34
S41: kg/m2
R42: Tårplåt | S42: =131/(2.5*1.25) -> 41.92
A43: Trappor | Q43: Mängdning spiraltrappor
A45: Tillverkare | B45: Material | C45: Funkti. enhet | D45: Mängd [ton] | E45: Källa, mängd | F45: A1-A5 | G45: Tot CO2 [ton] | H45: A1 (A1-A3) | I45: A2 | J45: A3 | K45: A4 | L45: A4 km | M45: A5 (byggspill/instal.) | R45: Höjd | S45: Vikt per höjdmeter (ton)
A46: Weland | B46: Spiraltrappa, galvad | C46: kg CO2e/kg | D46: =R46*S46 -> 6.1125 | E46: Ritningar | F46: =SUM(H46:M46) -> 2.9394 | G46: =D46*F46 -> 17.9670825 | H46: =2.66+0.0299 -> 2.6899 | K46: 0.0795 | M46: 0.17 | O46: Weland | R46: =33.45+7.3 -> 40.75 | S46: 0.15 | U46: Weland vikter
A47: Weland | B47: Raktrappa | C47: kg CO2e/kg | D47: =U51 -> 4.704 | E47: Ritningar | F47: =SUM(H47:M47) -> 2.9394 | G47: =D47*F47 -> 13.8269376 | H47: =2.66+0.0299 -> 2.6899 | K47: 0.0795 | M47: 0.17 | O47: Weland | Q47: Mängdning raktrappor
A48: Summa | G48: =G46+G47 -> 31.7940201
A49: Boverket | B49: Galvaniserade produkter | C49: kg CO2e/kg | D49: =D47+D46 -> 10.8165 | E49: Ritningar | F49: =SUM(H49:M49) -> 3.5795 | G49: =D49*F49 -> 38.71766175 | H49: 3.33 | K49: 0.0795 | M49: 0.17
R50: Höjd | S50: Antal trappor | T50: Vikt per höjdmeter | U50: Vikt
R51: 2.8 | S51: 4 | T51: =0.42 -> 0.42 | U51: =T51*S51*R51 -> 4.704
A52: Dörrar | V52: Weland vikter
Q53: Mängdning ståldörrar
A54: Tillverkare | B54: Material | C54: Funkti. enhet | D54: Mängd [ton,m2,st] | E54: Källa, mängd | F54: A1-A5 | G54: Tot CO2 [ton] | H54: A1 (A1-A3) | I54: A2 | J54: A3 | K54: A4 | L54: A4 km | M54: A5 (byggspill/instal.)
A55: Boverket | B55: Ståldörr | C55: kg CO2e/kg | D55: =U56 -> 1.2 | E55: Förfrågningsunderlag | F55: =SUM(H55:L55) -> 3.532 | G55: =F55*D55 -> 4.2384 | H55: 3.49 | K55: 0.042 | M55: 6.017 | O55: https://klimatdatabasen.boverket.se/detaljer/3/6000000115 | P55: JA | R55: Antal dörrar | S55: Storlek (m2) | T55: Antagen vikt (kg) | U55: Sammanlagd vikt (ton)
A56: Sakumetall | B56: Ståldörr | C56: kgCO2e/kg | D56: =V57 -> 31.5 | E56: Förfrågningsunderlag | F56: =SUM(H56:M56) -> 117.817531 | G56: =F56*D56/1000 -> 3.711252226 | H56: 109.77 | K56: 2.030531 | M56: 6.017 | O56: https://api.environdec.com/api/v1/EPDLibrary/Files/3c5a05e2-11f9-488d-1c18-08da2ccce1bd/Data | P56: NEJ | R56: 15 | S56: =2.1 -> 2.1 | T56: 80 | U56: =T56*R56/1000 -> 1.2 | V56: summa storlek
A57: Daloc | B57: Ståldörr | C57: kg CO2e/st | D57: =R56 -> 15 | E57: Förfrågningsunderlag | F57: =SUM(H57:M57) -> 261.617 | G57: =F57*D57/1000 -> 3.924255 | H57: 253 | K57: 2.6 | M57: 6.017 | O57: Daloc | V57: =S56*R56 -> 31.5
A58: Räcken
A59: Tillverkare | B59: Material | C59: Funkti. enhet | D59: Mängd [ton] | E59: Källa, mängd | F59: A1-A5 | G59: Tot CO2 [ton] | H59: A1 (A1-A3) | I59: A2 | J59: A3 | K59: A4 | L59: A4 km | M59: A5 (byggspill/instal.) | R59: Mängdning räcke
A60: Weland | B60: sektionsräcke | C60: kg CO2e/kg | D60: =U63 -> 0.89612 | E60: Ritningar | F60: =SUM(H60:N60) -> 1.7716 | G60: =F60*D60 -> 1.587566192 | H60: =1.49+0.0321 -> 1.5221 | K60: 0.0795 | M60: 0.17 | O60: Weland
A61: Boverket | B61: Galvaniserade produkter | C61: kg CO2e/kg | D61: =D60 -> 0.89612 | E61: Ritningar | F61: =SUM(H61:N61) -> 3.5795 | G61: =F61*D61 -> 3.20766154 | H61: 3.33 | K61: 0.0795 | M61: 0.17 | R61: Antal meter | S61: våningar | T61: vikt kg/m | U61: ton
R62: =2.6*2+3.7*2 -> 12.6 | S62: 7 | T62: 8.6
A63: Summering | R63: 16 | S63: 1 | T63: 8.6 | U63: =(R62*S62*T62+R63*S63*T63)/1000 -> 0.89612
C65: Tot CO2 [ton]
A66: Produktspecifik minimal | C66: =G8+G16+G24+G29+G30+G37+G38+G46+G47+G56+G60 -> 919.0930476
A67: Produktspecifik maximal | C67: =G5+G17+G25+G29+G30+G37+G38+G46+G47+G55+G56+G60 -> 1014.693901
A68: Boverket + produktspecifk | C68: =G10+G16+G24+G33+G32+G40+G49+G55+G61 -> 649.9978948
A72: Limträ
B74: Pelare | G74: Smide
B75: Längd | C75: Tvärsnitt | D75: Volym m3 | F75: Andel av mängd (kg) | H75: =20000/(1156265+154132) -> 0.0152625502
B76: =S4*R4 -> 925.488 | C76: =0.5*0.5 -> 0.25 | D76: =C76*B76 -> 231.372 | F76: Mängd (ton) | H76: =H75*D93 -> 2.003061729
B77: Balkar
B78: Längd | C78: Tvärsnitt | D78: Volym m3
B79: =T8*S8*V8+X8 -> 934.4 | C79: =0.15*0.35 -> 0.0525 | D79: =C79*B79 -> 49.056
A82: Summering | F82: Exkl. biogent | G82: Inkl. biogent
A83: Utsläpp, träkonstruktion | F83: =K76+K79 -> 0 | G83: =L79+L76 -> 0
A84: Besparing trä vs stål, [ton CO2e] | F84: =G8-F83 -> 603.4925131 | G84: =G8-G83 -> 603.4925131
A86: Tillverkare | B86: Material | C86: Funkti. enhet | D86: Mängd [m3,ton] | E86: Källa, mängd | F86: A1-A5 | G86: Tot CO2 [ton] | H86: A1 (A1-A3) | I86: A2 | J86: A3 | K86: A4 | L86: A4 km | M86: A5 (byggspill/instal.)
A87: Stora enso (exkl.biogent kol) | B87: Limträ | C87: kg CO2/m3 | D87: =D79+D76 -> 280.428 | E87: Fiktiv | F87: =SUM(H87:M87) -> 60.57 | G87: =F87*D87/1000 -> 16.98552396 | H87: =52.6 -> 52.6 | K87: =2.59 -> 2.59 | M87: 5.38 | N87: Stora Enso KL trä
A88: Stora enso (inkl.biogent kol) | B88: Limträ | C88: kg CO2/m3 | D88: =D79+D76 -> 280.428 | E88: Fiktiv | F88: =SUM(H88:M88) -> -701.4187 | G88: =F88*D88/1000 -> -196.6974432 | H88: =H87-762 -> -709.4 | K88: =K87+0.0103 -> 2.6003 | M88: =M87+0.001 -> 5.381 | N88: Stora Enso KL trä
A89: Moelven (inkl. biogent kol) | B89: Limträ | C89: kg CO2/m3 | D89: =D79+D76 -> 280.428 | E89: Fiktiv | F89: 58.04 | G89: 16.27604112 | H89: =52.4 -> 52.4 | K89: =2.82 -> 2.82 | M89: =2.82 -> 2.82 | N89: Moelven Limträ
A90: Moelven (exkl. biogent kol) | B90: Limträ | C90: kg CO2/m3 | D90: =D79+D76 -> 280.428 | E90: Fiktiv | F90: -685.308 | G90: -192.1795518 | H90: =H89-744 -> -691.6 | K90: =K89+0.326 -> 3.146 | M90: =M89+0.326 -> 3.146 | N90: Moelven Limträ
A91: Setra (exkl. biogent kol) | B91: Limträ | C91: kg CO2/m3 | D91: =D79+D76 -> 280.428 | E91: Fiktiv | F91: 56.65 | G91: 15.8862462 | H91: =44 -> 44 | K91: =4.3 -> 4.3 | M91: =M93 -> 8.35 | N91: Setra Limträ
A92: Setra (inkl. biogent kol) | B92: Limträ | C92: kg CO2/m3 | D92: =D79+D76 -> 280.428 | E92: Fiktiv | F92: -695.65 | G92: -195.0797382 | H92: =-704 -> -704 | K92: 0 | M92: =M91 -> 8.35 | N92: Setra Limträ
A93: Boverket | B93: Limträ | C93: kg CO2e/kg | D93: =D92*0.468 -> 131.240304 | E93: Fiktiv | F93: =SUM(H93:M93) -> 175.85 | G93: =F93*D93/1000 -> 23.07860746 | H93: 133 | K93: 34.5 | M93: 8.35 | N93: Boverket limträ
A94: Boverket | B94: Konstruktionsstål | C94: kg CO2e/kg | D94: =H76 -> 2.003061729 | E94: Fiktiv | F94: =SUM(H94:M94) -> 3.3905 | G94: =F94*D94 -> 6.791380791 | H94: 3.15 | K94: 0.0795 | M94: 0.161 | N94: Boverket
G96: =G87+G94 -> 23.77690475
G97: =600-24 -> 576

Sheet Tipphall
A1: Tillverkare | B1: Material | C1: Funkti. enhet | D1: Mängd [m2] | E1: Källa, mängd | F1: LCA CO2 (A1-A5) | G1: Tot CO2 [ton] | H1: A1-A3 | I1: A4 | K1: A5 (byggspill/instal.) | L1: Källa | M1: A2 | N1: Kommentar
A2: Vikport | O2: Mått
A3: AJAB SMIDE AB | B3: Vikport | C3: kg/m2 | D3: =(4*4.5*2)*2 -> 72 | F3: =H3+I3+K3 -> 89.22117 | G3: =(F3*D3)/1000 -> 6.42392424 | H3: =(7.85*10^1)-(1.24*10^0) -> 77.26 | I3: =1.37+(1.17*10^-3) -> 1.37117 | K3: =9.31+1.28 -> 10.59 | L3: AJAB | M3: JA | N3: Denna är 4,5x4 meter. Ska vara 7x14m | O3: L | P3: 17.7 | Q3: m
A4: Dukport/Takskjutport | O4: B | P4: 31.5 | Q4: m
A5: Assa Abloy | B5: Rolling door | C5: kg CO2e/st | D5: =31.5*2 -> 63 | F5: =H5+I5+K5 -> 34.1749 | G5: =(D5*F5)/1000 -> 2.1530187 | H5: =32.43-4.75 -> 27.68 | I5: =1.09-(1.51*10^-2) -> 1.0749 | K5: =0.78+4.64 -> 5.42 | L5: Teckentrup | M5: JA | N5: 7x4,5= 31,5 m2 | O5: H | P5: 14.2 | Q5: m
A6: Ståldörr | O6: A-tak | P6: =P4*P3 -> 557.55 | Q6: m2
A7: Boverket | B7: Ståldörr | C7: kg CO2e/kg | D7: =80*6 -> 480 | F7: =SUM(H7:I7) -> 3.532 | G7: =D7*F7/1000 -> 1.69536 | H7: 3.49 | I7: 0.042 | K7: 0 | L7: Boverket | M7: JA | N7: Mängden är i KG och antas vara 80 kg pga: https://www.lathamssteeldoors.co.uk/steel-security-doors/ | O7: A-fasad | P7: =P5*P4*2+P5*P3*2 -> 1397.28 | Q7: m2
A8: Sakumetall | B8: Ståldörr | C8: kgCO2e/kg | D8: =(2.18*1.23)*6 -> 16.0884 | F8: =SUM(H8+I8+K8) -> 117.817531 | G8: =D8*F8/1000 -> 1.895495566 | H8: =1.16*10^2-6.23*10^0 -> 109.77 | I8: =2.03+5.31*10^-4 -> 2.030531 | K8: =1.37*10^-1+5.88*10^0 -> 6.017 | L8: Saku Metall | M8: NEJ | O8: L-takbalk | P8: =17.7*4+31.5*3 -> 165.3 | Q8: m
A9: Takbalkar HEA-profil | O9: L-pelare | P9: =14.2*23 -> 326.6 | Q9: m
D10: Kg [m*kg/m]
A11: Tibnor | B11: HEA-350 | C11: kg CO2e/kg | D11: =P8*112 -> 18513.6 | E11: Mängdning från ritning | F11: =H11+I11+K11 -> 1.189500682 | G11: =D11*F11/1000 -> 22.02193983 | H11: =1.15*10^0 -> 1.15 | I11: =3.95*10^-2 -> 0.0395 | K11: =6.82*10^-7 -> 6.82e-07 | L11: Tibnor | M11: NEJ | N11: Val av HEA | O11: Tibnor
A12: Stena stål | B12: Stålprodukter | C12: kg CO2e/kg | D12: =(P8*112) -> 18513.6 | E12: Mängdning från ritning | F12: =H12+I12+K12 -> 0.7667 | G12: =D12*F12/1000 -> 14.19437712 | H12: =6.74*10^2/1000 -> 0.674 | I12: =3.25*10^1/1000 -> 0.0325 | K12: 0.0602 | L12: Stena Stål | M12: NEJ | N12: Val av HEA | O12: Tibnor
A13: BE-group | B13: Stålprodukter | C13: kg CO2e/kg | D13: =P8*112 -> 18513.6 | E13: Mängdning från ritning | F13: =H13+I13+K13 -> 0.8428 | G13: =D13*F13/1000 -> 15.60326208 | H13: =(7.19*10^-1) -> 0.719 | I13: =(6.36*10^-2) -> 0.0636 | K13: 0.0602 | L13: BE-group | M13: JA | N13: Val av HEA | O13: Tibnor
A14: Stena stål | B14: Återbrukat | C14: kg CO2e/ton | D14: =P8*112 -> 18513.6 | E14: Mängdning från ritning | F14: =SUM(H14:K14) -> 0.06920682 | G14: =F14*D14/1000 -> 1.281267383 | H14: =0.0532 -> 0.0532 | I14: 0.016 | K14: =0.00000682 -> 6.82e-06 | L14: Stena, återbrukat | M14: Nej
A15: Boverket | B15: stål (100% skrot) | C15: kg CO2e/kg | D15: =D13 -> 18513.6 | E15: Mängdning från ritning | F15: =H15+I15+K15 -> 1.2697 | G15: =D15*F15/1000 -> 23.50671792 | H15: 1.13 | I15: 0.0795 | K15: 0.0602 | L15: Boverket | M15: Nej | N15: Val av HEA | O15: Tibnor | Q15: Stena stål | R15: Återbrukat | S15: kg CO2e/ton
A16: Lättbalk Z-profil
D17: Omkrets*kg
A18: Lindab | B18: Z-prfil 120 | C18: kg CO2e/kg | D18: =(P3*2+P4*2)*2.17*12 -> 2562.336 | F18: =H18+I18+K18 -> 2.83978 | G18: =D18*F18/1000 -> 7.276470526 | H18: =2.79*10^0 -> 2.79 | I18: =4.88*10^-2 -> 0.0488 | K18: =9.8*10^-4 -> 0.00098 | L18: Lindab | M18: NEJ | N18: Vikten är: 2,17 kg/m. Cc 1200 | O18: Ruukki
A19: Boverket | B19: Skrotbaserad 100% | C19: kg CO2e/kg | D19: =(P4*2+P3*2)*2.17*12 -> 2562.336 | F19: =H19+I19+K19 -> 1.2697 | G19: =D19*F19/1000 -> 3.253398019 | H19: 1.13 | I19: 0.0795 | K19: 0.0602 | L19: Boverket | M19: NEJ
A20: Boverket | B20: Galvaniserade produkter | C20: kg CO2e/kg | D20: =(P4*2+P3*2)*2.17*12 -> 2562.336 | F20: =H20+I20+K20 -> 3.5795 | G20: =D20*F20/1000 -> 9.171881712 | H20: 3.33 | I20: 0.0795 | K20: 0.17 | L20: Boverket | M20: NEJ
A21: Fasadpelare och mittpelare KKR-profil
D22: Kg [m*kg/m]
A23: Boverket | B23: stål (80% skrot) | C23: kg CO2e/kg | D23: =P9*26.4 -> 8622.24 | E23: Mängdning från ritning | F23: =SUM(H23+I23+K23) -> 3.3905 | G23: =F23*D23/1000 -> 29.23370472 | H23: 3.15 | I23: 0.0795 | K23: 0.161 | L23: Boverket | M23: NEJ
A24: Stena stål | B24: Återbrukat | C24: kg CO2e/ton | D24: =P9*26.4 -> 8622.24 | E24: Mängdning från ritning | F24: =SUM(H24:K24) -> 0.06920682 | G24: =F24*D24/1000 -> 0.5967178117 | H24: =0.0532 -> 0.0532 | I24: 0.016 | K24: =0.00000682 -> 6.82e-06 | L24: Stena, återbrukat | M24: Nej
A25: Tibnor | B25: KKR-150 | C25: kg CO2e/kg | D25: =P9*26.4 -> 8622.24 | E25: Mängdning från ritning | F25: =SUM(H25+I25) -> 2.7488 | G25: =D25*F25/1000 -> 23.70081331 | H25: =2.7 -> 2.7 | I25: =4.88*10^-2 -> 0.0488 | K25: 0.0602 | L25: Tibnor | M25: NEJ | N25: Val av HEA | O25: Tibnor
A26: Mineralull
D27: A*tjocklek*densitet [ton]
A28: Boverket | B28: Glasull | C28: kg CO2e/kg | D28: =0.1*P6*90/1000 -> 5.01795 | E28: Mängdning från ritning | F28: =H28+I28+K28 -> 1.2468 | G28: =D28*F28 -> 6.25638006 | H28: 1.2 | I28: 0.0345 | K28: 0.0123 | L28: Boverket | M28: NEJ | N28: Vikt: 90kg/m2
A29: Knauf | B29: Mineralull | C29: kg CO2e/kg | D29: =0.1*P6*90/1000 -> 5.01795 | E29: Mängdning från ritning | F29: =SUM(H29:K29)/9 -> 1.372444444 | G29: =F29*D29 -> 6.8868576 | H29: =9.26 -> 9.26 | I29: 0.672 | K29: 2.42 | L29: Knauf | M29: NEJ | N29: Vikt: 90kg/m2
A30: Profilerat tak
A31: Boverket | B31: Galvaniserade produkter | C31: kg CO2e/kg | D31: =P6*36 -> 20071.8 | E31: Mängdning från ritning | F31: =H31+I31+K31 -> 3.5795 | G31: =D31*F31/1000 -> 71.8470081 | H31: 3.33 | I31: 0.0795 | K31: 0.17 | L31: Boverket | M31: NEJ
A32: Lindab | B32: Högprofilerad plåt | C32: kg CO2e/kg | D32: =P6*36 -> 20071.8 | E32: Mängdning från ritning | F32: =H32+I32+K32 -> 2.81041 | G32: =D32*F32/1000 -> 56.40998744 | H32: =2.76*10^0 -> 2.76 | I32: =4.88*10^-2 -> 0.0488 | K32: =1.61*10^-3 -> 0.00161 | L32: Lindab | M32: NEJ | N32: 36 kg/m2 | O32: Lindab
A33: Portomfattning
D34: Kg [m*kg/m]
A35: Stena stål | B35: Återbrukat | C35: kg CO2e/ton | D35: =(7+14*2+7+4.5*2)*26.4 -> 1346.4 | E35: Mängdning från ritning | F35: =SUM(H35:K35) -> 0.06920682 | G35: =F35*D35/1000 -> 0.09318006245 | H35: =0.0532 -> 0.0532 | I35: 0.016 | K35: =0.00000682 -> 6.82e-06 | L35: Stena, återbrukat | M35: NEJ
A36: Tibnor | B36: KKR-150 | C36: kg CO2e/kg | D36: =(7+14*2+7+4.5*2)*26.4 -> 1346.4 | E36: Mängdning från ritning | F36: =SUM(H36+I36) -> 2.7488 | G36: =D36*F36/1000 -> 3.70098432 | H36: =2.7 -> 2.7 | I36: =4.88*10^-2 -> 0.0488 | K36: 0 | L36: Tibnor | M36: NEJ | N36: Räknar med en KKR-balk runt portarna som protomfattning. De har dimensionerna 4,5x7 och 14x7. | O36: Tibnor
A37: Boverket | B37: stål (80% skrot) | C37: kg CO2e/kg | D37: =D36 -> 1346.4 | E37: Mängdning från ritning | F37: =SUM(H37+I37) -> 3.2295 | G37: =D37*F37/1000 -> 4.3481988 | H37: 3.15 | I37: 0.0795 | K37: 0.161 | L37: Boverket
A38: Stålplåt
D39: Mängd [ton]
A40: Tata | B40: Stålplåt | C40: kg CO2e/ton | D40: =P7*0.005*7.8 -> 54.49392 | E40: Mängdning från ritning | F40: =H40 -> 2800 | G40: =F40*D40/1000 -> 152.582976 | H40: =2.8*10^3 -> 2800 | I40: 0.0795 | K40: 0.0602 | L40: Tata | M40: NEJ | N40: 0,005m tjock. Desitet 7,8 ton/m3 | O40: A4 och A5 från Boverkets stål 100% skrot
D41: Mängd [m2]
A42: Sidma | B42: Aluminiumplåt | C42: kg CO2e/m2 | D42: =P7 -> 1397.28 | E42: Mängdning från ritning | F42: =H42 -> 39.5514 | G42: =F42*D42/1000 -> 55.26438019 | H42: =3.95*10^1+5.14*10^-2 -> 39.5514 | I42: 0.0795 | K42: 0.0602 | L42: Sidma | M42: JA | N42: Aluminium | O42: A4 och A5 från Boverkets stål 100% skrot
A43: Resultat
A44: Bäst | B44: =G3+G5+G8+G12+G25+G29+G32+G36+G42+G18 -> 177.906309
A45: Sämst | B45: =G3+G5+G7+G11+G25+G29+G31+G36+G40+G19 -> 294.2662801
A46: Boverket | B46: =G3+G5+G7+G13+G25+G28+G31+G36+G40+G19 -> 287.2171248
A49: Limträ
A50: Tillverkare | B50: Material | C50: Funkti. enhet | D50: Mängd [m3,ton] | E50: Källa, mängd | F50: A1-A5 | G50: Tot CO2 [ton] | H50: A1 (A1-A3) | I50: A2 | J50: A3 | K50: A4 | L50: A4 km | M50: A5 (byggspill/instal.) | O50: Pelare
A51: Stora enso (exkl.biogent kol) | B51: Limträ | C51: kg CO2/m3 | D51: =Q52+Q55 -> 98.7965 | E51: Fiktiv | F51: =SUM(H51:M51) -> 60.57 | G51: =F51*D51/1000 -> 5.984104005 | H51: =52.6 -> 52.6 | K51: =2.59 -> 2.59 | M51: 5.38 | N51: Stora Enso KL trä | O51: Längd | P51: Tvärsnitt | Q51: Volym m3
A52: Stora enso (inkl.biogent kol) | B52: Limträ | C52: kg CO2/m3 | D52: =Q52+Q55 -> 98.7965 | E52: Fiktiv | F52: -701.4187 | G52: =F52*D52/1000 -> -69.29771259 | H52: =H51-762 -> -709.4 | K52: =K51+0.0103 -> 2.6003 | M52: =M51+0.001 -> 5.381 | N52: Stora Enso KL trä | O52: =P9 -> 326.6 | P52: =0.5*0.5 -> 0.25 | Q52: =P52*O52 -> 81.65
A53: Moelven (inkl. biogent kol) | B53: Limträ | C53: kg CO2/m3 | D53: =Q52+Q55 -> 98.7965 | E53: Fiktiv | F53: 58.04 | G53: 5.73414886 | H53: =52.4 -> 52.4 | K53: =2.82 -> 2.82 | M53: =2.82 -> 2.82 | N53: Moelven Limträ | O53: Balkar
A54: Moelven (exkl. biogent kol) | B54: Limträ | C54: kg CO2/m3 | D54: =Q52+Q55 -> 98.7965 | E54: Fiktiv | F54: -685.308 | G54: -67.70603182 | H54: =H53-744 -> -691.6 | K54: =K53+0.326 -> 3.146 | M54: =M53+0.326 -> 3.146 | N54: Moelven Limträ | O54: Längd | P54: Tvärsnitt | Q54: Volym m3
A55: Setra (exkl. biogent kol) | B55: Limträ | C55: kg CO2/m3 | D55: =Q52+Q55 -> 98.7965 | E55: Fiktiv | F55: 56.65 | G55: 5.596821725 | H55: =44 -> 44 | K55: =4.3 -> 4.3 | M55: =M57 -> 8.35 | N55: Setra Limträ | O55: =P9 -> 326.6 | P55: =0.15*0.35 -> 0.0525 | Q55: =P55*O55 -> 17.1465
A56: Setra (inkl. biogent kol) | B56: Limträ | C56: kg CO2/m3 | D56: =Q52+Q55 -> 98.7965 | E56: Fiktiv | F56: -695.65 | G56: -68.72778522 | H56: =-704 -> -704 | K56: 0 | M56: =M55 -> 8.35 | N56: Setra Limträ
A57: Boverket | B57: Limträ | C57: kg CO2e/kg | D57: =D56*0.468 -> 46.236762 | E57: Fiktiv | F57: =SUM(H57:M57) -> 175.85 | G57: =F57*D57/1000 -> 8.130734598 | H57: 133 | K57: 34.5 | M57: 8.35 | N57: Boverket limträ | O57: Smide
A58: Boverket | B58: Konstruktionsstål | C58: kg CO2e/kg | D58: =Q59 -> 0.7056909013 | E58: Fiktiv | F58: =SUM(H58:M58) -> 3.3905 | G58: =F58*D58 -> 2.392645001 | H58: 3.15 | K58: 0.0795 | M58: 0.161 | N58: Boverket | O58: Andel av mängd (kg) | Q58: =20000/(1156265+154132) -> 0.0152625502
O59: Mängd (ton) | Q59: =Q58*D57 -> 0.7056909013

Sheet Transporter
A1: Utsläpp transport Spanien - Uddevalla | G1: CO2e utsläpp - olika energikällor
A2: Trafikverket med Diesel | D2: Trafikverket med HVO | H2: Utsläpp | I2: Energiinnehåll kWh/l
A3: kWh/km | B3: 3.4 | C3: Trafikverket | D3: =A3 -> kWh/km | E3: 3.4 | F3: Trafikverket | G3: Diesel MK1 kg CO2e/liter | H3: 2.356 | I3: =35.3/3.6 -> 9.805555556
A4: KWh/l | B4: =I3 -> 9.805555556 | C4: Ungefärlig siffra utifrån flera källor | D4: KWh/l | E4: =I4 -> 9.444444444 | F4: Ungefärlig siffra utifrån flera källor | G4: HVO100 kg CO2e/liter | H4: 0.357 | I4: =34/3.6 -> 9.444444444 | J4: =I4/I3 -> 0.9631728045
A5: l/km | B5: =B3/B4 -> 0.3467422096 | D5: l/km | E5: =E3/E4 -> 0.36 | G5: El (mix) kg/kWh | H5: =26/1000 -> 0.026
A6: kg CO2e/l | B6: =H3 -> 2.356 | D6: kg CO2e/l | E6: =H4 -> 0.357 | G6: Diesel MK1 kg CO2e/kWh | H6: =1/I3*H3 -> 0.2402719547 | J6: =(1-J4)*100 -> 3.682719547
A7: kg CO2e/km | B7: =B6*B5 -> 0.8169246459 | D7: kg CO2e/km | E7: =E6*E5 -> 0.12852 | G7: HVO100 kg CO2e/kWh | H7: =H4*1/I4 -> 0.0378
A8: km | B8: 2700 | D8: km | E8: 2700
A9: tot co2e [ton] | B9: =B7*B8/1000 -> 2.205696544 | D9: tot co2e [ton] | E9: =E7*E8/1000 -> 0.347004 | G9: Drivmedel | H9: Liter | I9: Pris/liter | J9: Kostnad | K9: CO2e besparing ton | L9: Kr / ton
G10: Diesel | H10: =B12*B8*B5 -> 45873.99433 | I10: 18.69 | J10: =I10*H10 -> 857384.9541 | K10: 0 | L10: NA
A11: Tung lastbil [ton] | B11: 40 | D11: =A11 -> Tung lastbil [ton] | E11: 40 | G11: HVO | H11: =E12*E8*E5 -> 47628 | I11: =21.84 -> 21.84 | J11: =I11*H11 -> 1040195.52 | K11: =B18-B17 -> 91.07593465 | L11: =(J11-J10)/K11 -> 2007.232389
A12: Antal körningar | B12: 49 | D12: =A12 -> Antal körningar | E12: 49 | F12: Tornum
A13: TOT CO2e [ton] | B13: =B12*B9 -> 108.0791307 | D13: =A13 -> TOT CO2e [ton] | E13: =E12*E9 -> 17.003196
A14: Kostnad | B14: =B8*B5*I10*B12 -> 857384.9541 | D14: Kostnad | E14: =E5*E8*E12*I11 -> 1040195.52 | G14: Drivmedel | H14: Liter | I14: Pris/liter | J14: Kostnad | K14: CO2e besparing ton | L14: Kr / ton
A15: CO2e besparing ton | B15: 0 | D15: CO2e besparing ton | E15: =B13-E13 -> 91.07593465 | G15: Diesel | H15: =B29 -> 15297.45042 | I15: =I10 -> 18.69 | J15: =B32 -> 285909.3484 | K15: 0 | L15: =B34 -> NA
A16: Kr / ton | B16: NA | D16: Kr / ton | E16: =(E14-B14)/E15 -> 2007.232389 | G16: HVO | H16: =E29 -> 15882.35294 | I16: =I11 -> 21.84 | J16: =E32 -> 346870.5882 | K16: =E33 -> 30.3707932 | L16: =E34 -> 2007.232389
A17: HVO | B17: =E13 -> 17.003196
A18: Diesel | B18: =B13 -> 108.0791307
A20: Utsläpp transport Uddevalla - lokaltipp (25 km enkelväg, 50 km dubbelväg)
A21: Diesel | D21: HVO
A22: l/km | B22: =B5 -> 0.3467422096 | D22: l/km | E22: =E5 -> 0.36
A23: kg CO2e/l | B23: =B6 -> 2.356 | D23: kg CO2e/l | E23: =E6 -> 0.357
A25: Massor [m3] | B25: 6000 | D25: Massor [m3] | E25: 6000
A26: Ton | B26: =B25*2.5 -> 15000 | D26: Ton | E26: =E25*2.5 -> 15000
A27: Antal lastbilar | B27: =B26/17 -> 882.3529412 | D27: Antal lastbilar | E27: =E26/17 -> 882.3529412
A28: Kilometer | B28: =B27*50 -> 44117.64706 | D28: Kilometer | E28: =50*E27 -> 44117.64706
A29: Liter bränsle | B29: =B28*B22 -> 15297.45042 | D29: Liter bränsle | E29: =E28*E22 -> 15882.35294
A31: TOT CO2e [ton] | B31: =B29*B23/1000 -> 36.0407932 | D31: TOT CO2e [ton] | E31: =E29*E23/1000 -> 5.67
A32: Kostnad | B32: =B29*I10 -> 285909.3484 | D32: Kostnad | E32: =E29*I11 -> 346870.5882
A33: CO2e besparing ton | B33: 0 | D33: CO2e besparing ton | E33: =B31-E31 -> 30.3707932
A34: Kr / ton | B34: NA | D34: Kr / ton | E34: =(E32-B32)/E33 -> 2007.232389
A35: HVO | B35: =E31 -> 5.67
A36: Diesel | B36: =B31 -> 36.0407932

Sheet Entreprenadmaskiner
A1: Grävmaskiner - schakt innan sprägning
A2: Märke | B2: Modell | C2: Vikt [ton] | D2: Dielsel [l/h] | E2: Diesel [CO2e/h] | F2: HVO [CO2e/h] | G2: h | H2: Tot CO2e diesel [ton] | I2: Tot CO2e HVO [ton] | J2: Källa | K2: CO2e utsläpp - olika energikällor
A3: Volvo | B3: EC 300 | C3: 34 | D3: =E3/$L$4 -> 25.16977929 | E3: 59.3 | F3: =D3*1.04*$L$5 -> 9.345035654 | G3: =$L$10*2*$L$13 -> 160 | H3: =E3*G3/1000 -> 9.488 | I3: =F3*G3/1000 -> 1.495205705 | J3: Volvo | K3: Drivmedel | L3: Utsläpp (kg CO2e) | M3: Energiinnehåll (kWh/l) | N3: Skillnad
A4: Liebherr | B4: R934 | C4: 35 | D4: 18.48 | E4: =D4*$L$4 -> 43.53888 | F4: =D4*$L$5 -> 6.59736 | G4: =$L$10*2*$L$13 -> 160 | H4: =E4*G4/1000 -> 6.9662208 | I4: =F4*G4/1000 -> 1.0555776 | J4: Liebherr | K4: Diesel MK1 kg CO2e/liter | L4: 2.356 | M4: 9.805556
A5: Liebherr | B5: R938 | C5: 37 | D5: 20.65 | E5: =D5*$L$4 -> 48.6514 | F5: =D5*$L$5 -> 7.37205 | G5: =$L$10*2*$L$13 -> 160 | H5: =E5*G5/1000 -> 7.784224 | I5: =F5*G5/1000 -> 1.179528 | J5: Liebherr | K5: HVO100 kg CO2e/liter | L5: 0.357 | M5: 9.444444 | N5: 0.963173
A6: Caterpillar | B6: 336F | C6: 37 | D6: 22 | E6: =D6*$L$4 -> 51.832 | F6: =D6*$L$5 -> 7.854 | G6: =$L$10*2*$L$13 -> 160 | H6: =E6*G6/1000 -> 8.29312 | I6: =F6*G6/1000 -> 1.25664 | J6: Cat | K6: Diesel MK1 kg CO2e/kWh | L6: 0.24 | N6: 3.68272
A7: Medel | C7: =SUM(C3:C6)/4 -> 35.75 | D7: =SUM(D3:D6)/4 -> 21.57494482 | E7: =SUM(E3:E6)/4 -> 50.83057 | F7: =SUM(F3:F6)/4 -> 7.792111413 | H7: =SUM(H3:H6)/4 -> 8.1328912 | I7: =SUM(I3:I6)/4 -> 1.246737826 | K7: HVO100 kg CO2e/kWh | L7: 0.038
A9: Grävmaskiner - övrig tid | K9: 1 arbetsdag | L9: 8 | M9: h
A10: =A2 -> Märke | B10: Modell | C10: Vikt [ton] | D10: Dielsel [l/h] | E10: Diesel [CO2e/h] | F10: HVO [CO2e/h] | G10: h | H10: Tot CO2e diesel [ton] | I10: Tot CO2e HVO [ton] | J10: Källa | K10: 1 vecka | L10: =L9*5 -> 40 | M10: h
A11: Volvo | B11: EC 300 | C11: 34 | D11: =E11/$L$4 -> 25.16977929 | E11: 59.3 | F11: =D11*1.04*$L$5 -> 9.345035654 | G11: =$L$11*12*$L$15 -> 3840 | H11: =E11*G11/1000 -> 227.712 | I11: =F11*G11/1000 -> 35.88493691 | J11: Volvo | K11: 1 månad | L11: =L10*4 -> 160 | M11: h
A12: Liebherr | B12: R934 | C12: 35 | D12: 18.48 | E12: =D12*$L$4 -> 43.53888 | F12: =D12*$L$5 -> 6.59736 | G12: =$L$11*12*$L$15 -> 3840 | H12: =E12*G12/1000 -> 167.1892992 | I12: =F12*G12/1000 -> 25.3338624 | J12: Liebherr
A13: Liebherr | B13: R938 | C13: 37 | D13: 20.65 | E13: =D13*$L$4 -> 48.6514 | F13: =D13*$L$5 -> 7.37205 | G13: =$L$11*12*$L$15 -> 3840 | H13: =E13*G13/1000 -> 186.821376 | I13: =F13*G13/1000 -> 28.308672 | J13: Liebherr | K13: Antal grävmaskiner schakt | L13: 2
A14: Caterpillar | B14: 336F | C14: 37 | D14: 22 | E14: =D14*$L$4 -> 51.832 | F14: =D14*$L$5 -> 7.854 | G14: =$L$11*12*$L$15 -> 3840 | H14: =E14*G14/1000 -> 199.03488 | I14: =F14*G14/1000 -> 30.15936 | J14: Cat
A15: Medel | C15: =SUM(C11:C14)/4 -> 35.75 | D15: =SUM(D11:D14)/4 -> 21.57494482 | E15: =SUM(E11:E14)/4 -> 50.83057 | F15: =SUM(F11:F14)/4 -> 7.792111413 | H15: =SUM(H11:H14)/4 -> 195.1893888 | I15: =SUM(I11:I14)/4 -> 29.92170783 | K15: Antal grävmaskiner | L15: 2
A17: Dumper | K17: Antal dumper | L17: 1
A18: =A2 -> Märke | B18: Modell | C18: Vikt [ton] | D18: Dielsel [l/h] | E18: Diesel [CO2e/h] | F18: HVO [CO2e/h] | G18: h | H18: Tot CO2e diesel [ton] | I18: Tot CO2e HVO [ton] | J18: Källa
A19: Volvo | B19: A25 | C19: 25 | D19: =E19/$L$4 -> 19.39728353 | E19: 45.7 | F19: =D19*1.04*$L$5 -> 7.20182343 | G19: =$L$11*6*$L$17 -> 960 | H19: =E19*G19/1000 -> 43.872 | I19: =F19*G19/1000 -> 6.913750492 | J19: Volvo
A20: Volvo | B20: A30 | C20: 30 | D20: =E20/$L$4 -> 21.94397284 | E20: 51.7 | F20: 8.147358234 | G20: 960 | H20: 49.632 | I20: 7.821463905 | J20: Volvo
A21: Volvo | B21: A35 | C21: 35 | D21: =E21/$L$4 -> 26.10356537 | E21: 61.5 | F21: 9.691731749 | G21: 960 | H21: 59.04 | I21: 9.304062479 | J21: Volvo
A22: Volvo | B22: A40 | C22: 40 | D22: =E22/$L$4 -> 31.36672326 | E22: 73.9 | F22: 11.64583701 | G22: 960 | H22: 70.944 | I22: 11.18000353 | J22: Volvo
A23: Volvo | B23: A45 | C23: 45 | D23: =E23/$L$4 -> 31.15449915 | E23: 73.4 | F23: 11.56704244 | G23: 960 | H23: 70.464 | I23: 11.10436075 | J23: Volvo
A24: Liebherr | B24: TA230 | C24: 25 | D24: 15.06 | E24: =D24*L4 -> 35.48136 | F24: 5.5914768 | G24: 960 | H24: 34.0621056 | I24: 5.367817728 | J24: Liebherr
A25: Medel | C25: =SUM(C19:C24)/6 -> 33.33333333 | D25: =SUM(D19:D24)/6 -> 24.17100736 | E25: =SUM(E19:E24)/6 -> 56.94689333 | F25: =SUM(F19:F24)/6 -> 8.974211612 | H25: =SUM(H19:H24)/6 -> 54.6690176 | I25: =SUM(I19:I24)/6 -> 8.615243147
A27: Compactor/Vält
A28: =A2 -> Märke | B28: Modell | C28: Vikt [ton] | D28: Dielsel [l/h] | E28: Diesel [CO2e/h] | F28: HVO [CO2e/h] | G28: h | H28: Tot CO2e diesel [ton] | I28: Tot CO2e HVO [ton] | J28: Källa
A29: Volvo | B29: SD115 | C29: 11 | D29: =E29/$L$4 -> 16.25636672 | E29: 38.3 | F29: =D29*1.04*$L$5 -> 6.035663837 | G29: =L11*4 -> 640 | H29: =E29*G29/1000 -> 24.512 | I29: =F29*G29/1000 -> 3.862824856 | J29: Volvo
A30: Caterpillar | B30: CP56B | C30: 11.6 | D30: 14 | E30: =D30*$L$4 -> 32.984 | F30: =D30*1.04*$L$5 -> 5.19792 | G30: =G29 -> 640 | H30: =E30*G30/1000 -> 21.10976 | I30: =F30*G30/1000 -> 3.3266688 | J30: Cat
C31: =SUM(C29:C30)/2 -> 11.3 | D31: =SUM(D29:D30)/2 -> 15.12818336 | E31: =SUM(E29:E30)/2 -> 35.642 | F31: =SUM(F29:F30)/2 -> 5.616791919 | H31: =(H29+H30)/2 -> 22.81088 | I31: =(I29+I30)/2 -> 3.594746828
A33: CO2 besparing maskiner
B34: Diesel [l] | C34: Kostnad [kr] | D34: HVO [l] | E34: Kostnad [kr] | F34: Extra kostnad [kr] | G34: kr / sparat ton CO2e
A35: Grävmaskiner | B35: =D15*L10*2*L13+D15*G14 -> 86299.77929 | C35: =B35*'Material & Processer'!C49 -> 1612942.875 | D35: =B35/N5 -> 89599.45855 | E35: =D35*'Material & Processer'!C50 -> 1956852.175 | F35: =E35-C35 -> 343909.2998 | G35: =(F35)/((H15+H7)-(I15+I7)) -> 1997.685971
A36: Dumper | B36: =D25*G24 -> 23204.16706 | C36: =B36*'Material & Processer'!C49 -> 433685.8824 | D36: =B36/N5 -> 24091.38033 | E36: =D36*'Material & Processer'!C50 -> 526155.7463 | F36: =E36-C36 -> 92469.86392 | G36: =F36/(H25-I25) -> 2007.867216
A37: Compactor/vält | B37: =D31*G30 -> 9682.037351 | C37: =B37*'Material & Processer'!C49 -> 180957.2781 | D37: =B37/N5 -> 10052.23086 | E37: =D37*'Material & Processer'!C50 -> 219540.7219 | F37: =E37-C37 -> 38583.44382 | G37: =F37/(H31-I31) -> 2007.867216
A39: Resultat
A40: HVO | B40: =I15+I25+I31+I7 -> 43.37843563
A41: Diesel | B41: =H7+H15+H25+H31 -> 280.8021776
A42: Boverket | B42: -

Sheet Referensobjekt, Sala
A1: Mängdning betong & armering
A2: Stora silor
A3: Inre Radie [m] | B3: Tjocklek vägg [m] | C3: Höjd[m] | D3: Inre area [m2] | E3: Yttre area [m2] | F3: Volym [m3] | G3: Antal [st] | H3: Totalt [m3]
A4: =9/2 -> 4.5 | B4: 0.2 | C4: =105-51.4 -> 53.6 | D4: =A4^2*PI() -> 63.61725124 | E4: =(A4+B4)^2*PI() -> 69.39778172 | F4: =(E4-D4)*C4 -> 309.8364339 | G4: 12 | H4: =F4*G4 -> 3718.037206
A5: Små silor
A6: Radie [m] | B6: =B3 -> Tjocklek vägg [m] | C6: =C3 -> Höjd[m] | D6: Inre area [m2] | E6: Yttre area [m2] | F6: Volym [m3] | G6: =G3 -> Antal [st] | H6: Totalt [m3]
A7: =6.04/2 -> 3.02 | B7: 0.2 | C7: =C4 -> 53.6 | D7: =A7^2*PI() -> 28.65258164 | E7: =(A7+B7)^2*PI() -> 32.57328927 | F7: =(E7-D7)*C7 -> 210.1499291 | G7: 5 | H7: =G7*F7 -> 1050.749645
A8: "Tak"
A9: Tjocklek | B9: area [m2] | C9: Volym [m3]
A10: 0.16 | B10: =C13*B13*0.85 -> 1026.562 | C10: =B10*A10 -> 164.24992
A11: Betongplatta
A12: Tjocklek (m) | B12: Längd (m) | C12: Bredd (m) | D12: Volym [m3]
A13: 0.6 | B13: 55.4 | C13: 21.8 | D13: =C13*B13*A13 -> 724.632
A14: Kulvertar
A15: Höjd | B15: Bredd | C15: Tjocklek | D15: Längd | E15: Antal kulvertar | F15: Volym [m3]
A16: =51.4-0.6-48.8 -> 2 | B16: 2 | C16: 0.2 | D16: =B13 -> 55.4 | E16: 2 | F16: =D16*C16*(B16+A16*2)*E16 -> 132.96
A17: Sulor
A18: Tjocklek | B18: Höjd | C18: Längd | D18: Bredd [m] | E18: Volym [m3] | F18: Antagande
A19: 1 | B19: 3 | C19: =B13 -> 55.4 | D19: 21.8 | E19: =A19*B19*D19*2+A19*B19*C19*2 -> 463.2 | F19: Sulor går på både långsidor och kortsidor. Tjocklek 1m. Höjd 3m.
A20: Volym betong och armering
A21: Betongvolym [m3] | B21: Varav ovan mark [m3] | C21: Varav under mark [m3] | D21: Armering (ton) | E21: Armering ovan mark [ton] | F21: Armering under mark [ton]
A22: =E19+F16+D13+H7+H4+C10 -> 6253.828772 | B22: =H4+H7+C10 -> 4933.036772 | C22: =D13+F16+E19 -> 1320.792 | D22: =A22*0.1 -> 625.3828772 | E22: =B22*0.1 -> 493.3036772 | F22: =C22*0.1 -> 132.0792
A24: EPD:er
A25: Betong
A26: Tillverkare | B26: Material | C26: Enhet | D26: Mängd [m3] | E26: Källa, mängd | F26: LCA CO2 (A1-A5) | G26: Tot CO2 [ton] | H26: A1 eller A1-A3 | I26: A2 | J26: A3 | K26: A4 | L26: A5 (byggspill/instal.) | M26: Länk EPD/källa
A27: Skanska | B27: Anläggning, ej klimatförbättr | C27: Kg/m3 | D27: =C22 -> 1320.792 | E27: Ritningar | F27: =SUM(H27:K27) -> 311.6 | G27: =D27*F27/1000 -> 411.5587872 | H27: 311.6 | K27: =S31 -> 0 | L27: 3.37 | M27: Skanska
A28: Thomas betong | B28: Anläggning C30/37 | C28: Kg/m3 | D28: =C22 -> 1320.792 | E28: =E27 -> Ritningar | F28: =SUM(H28:L28) -> 232.17 | G28: =D28*F28/1000 -> 306.6482786 | H28: 225 | K28: 3.8 | L28: 3.37 | M28: mail
A29: Swerock | B29: Swerock Eco 3 | C29: Kg/m3 | D29: =C22 -> 1320.792 | E29: =E28 -> Ritningar | F29: =SUM(H29:L29) -> 228.83 | G29: =F29*D29/1000 -> 302.2368334 | H29: 214 | I29: 7.18 | J29: 1.12 | K29: 3.16 | L29: 3.37 | M29: Swerock
A30: Betongindustri | B30: VäggBI C35/45 BIO1 | C30: Kg/m3 | D30: =B22 -> 4933.036772 | E30: Ritningar | F30: =SUM(H30:L30) -> 266.74 | G30: =F30*D30/1000 -> 1315.838228 | H30: 260 | K30: 3.37 | L30: 3.37 | M30: Betongindustrin
A31: Betongindustri | B31: VäggBI C35/45 BIO3 | C31: Kg/m3 | D31: =B22 -> 4933.036772 | E31: Ritningar | F31: =SUM(H31:L31) -> 176.73 | G31: =D31*F31/1000 -> 871.8155887 | H31: 170 | K31: 3.36 | L31: 3.37 | M31: Betongindustrin
A32: Armering
A33: Tillverkare | B33: Material | C33: Enhet | D33: Mängd [ton] | E33: Källa, mängd | F33: LCA CO2 (A1-A5) | G33: Tot CO2 [ton] | H33: A1 eller A1-A3 | I33: A2 | J33: A3 | K33: A4 | L33: A5 (byggspill/instal.) | M33: Länk EPD/källa
A34: Boverket | B34: Armering | C34: Kg/ton | D34: =D22 -> 625.3828772 | E34: Antagande, 100kg /m2 | F34: =SUM(H34:L34) -> 898.7 | G34: =F34*D34/1000 -> 562.0315917 | H34: 745 | K34: 79.5 | L34: 74.2 | M34: Boverket.se
A35: Celsa | B35: Armering | C35: Kg/ton | D35: =D22 -> 625.3828772 | E35: Antagande, 100kg /m3 | F35: =SUM(H35:L35) -> 519.4 | G35: =F35*D35/1000 -> 324.8238664 | H35: =373+25 -> 398 | K35: =33.4+13.8 -> 47.2 | L35: 74.2 | M35: Celsa
A36: BE Group | B36: Armering | C36: kg/ton | D36: =D22 -> 625.3828772 | E36: Antagande, 100kg /m4 | F36: =SUM(H36:L36) -> 501.83 | G36: =F36*D36/1000 -> 313.8358893 | H36: =338+19 -> 357 | K36: =77.1-6.47 -> 70.63 | L36: 74.2 | M36: BE group
A37: Stena Stål AB | B37: Armering | C37: kg/ton | D37: =D22 -> 625.3828772 | E37: Antagande, 100kg /m5 | F37: =SUM(H37:L37) -> 579.6 | G37: =F37*D37/1000 -> 362.4719156 | H37: =4.73*10^2 -> 473 | K37: =3.24*10^1 -> 32.4 | L37: 74.2 | M37: Stena Stål
A39: Lagringskapacitet
A40: Uddevalla | B40: 43000
A41: Sala | B41: 34000
A43: Buffert till galvaniserat stål
A44: Buffert till stål för Best Case Scenario
A45: Anläggning | B45: Lagringskapacitet [ton] | C45: CO2e btg+armering [ton] | D45: Co2e/lagringston [ton] | E45: Buffert för stålet [ton] | F45: Värde på EPD [kg CO2e/ton]
A46: Uddevalla | B46: =B40 -> 43000 | C46: =(Resultat!B3+Resultat!B5)*0.75 -> 1278.495 | D46: =C46/B46 -> 0.02973244186 | E46: =B46*(D47-D46) -> 603.2460996 | F46: =E46/'Material & Processer'!D10*1000 -> 942.5720305
A47: Sala | B47: =B41 -> 34000 | C47: =G29+G31+G36 -> 1487.888311 | D47: =C47/B47 -> 0.04376142092
D48: =D47-D46 -> 0.01402897906
A49: Buffert till stål för Worst Case Scenario
A50: Anläggning | B50: Lagringskapacitet [ton] | C50: CO2e btg+armering [ton] | D50: Co2e/lagringston [ton] | E50: Buffert för stålet [ton] | F50: Värde på EPD [kg CO2e/ton]
A51: Uddevalla | B51: =B40 -> 43000 | C51: =(Resultat!C3+Resultat!C5)*0.75 -> 1807.065 | D51: =C51/B51 -> 0.04202476744 | E51: =B51*(D52-D51) -> 836.0045308 | F51: =E51/'Material & Processer'!D10*1000 -> 1306.257079
A52: Sala | B52: =B41 -> 34000 | C52: =G37+G30+G27 -> 2089.868931 | D52: =C52/B52 -> 0.06146673327
D53: =D52-D51 -> 0.01944196583
A55: Galvat stål vs btg väggar
A56: Best case stål vs betong
A57: Anläggning | B57: Vägg CO2e [ton] | C57: CO2e /lagringskapacitet [ton] | D57: Förändring CO2e [ton]
A58: Uddevalla | B58: =Resultat!B4 -> 687.062076 | C58: =B58/B40 -> 0.01597818781 | D58: =(C59-C58)*B40 -> 728.6119663 | E58: Best case | F58: =D58 -> 728.6119663
A59: Sala | B59: =B22*F31/1000+E22*F36/1000 -> 1119.370173 | C59: =B59/B41 -> 0.03292265215 | E59: Worst Case | F59: =D62 -> 63.14441965
A60: Worst case stål vs betong | E60: =B22*F30/1000+F37*E22/1000 -> 1601.75704
A61: Anläggning | B61: =B57 -> Vägg CO2e [ton] | C61: =C57 -> CO2e /lagringskapacitet [ton] | D61: =D57 -> Förändring CO2e [ton]
A62: Uddevalla | B62: =Resultat!C4 -> 1962.607131 | C62: =B62/B40 -> 0.04564202629 | D62: =(C63-C62)*B40 -> 63.14441965
A63: Sala | B63: =B22*F30/1000+F37*E22/1000 -> 1601.75704 | C63: =B63/B41 -> 0.04711050117
A65: Galvat stål vs btg väggar+ platta
A66: Väggar | E66: Platta | G66: Tot CO2e
A67: Best case stål vs betong | I67: =A68 -> Anläggning | J67: =H68 -> CO2e /lagringskapacitet [kg]
A68: Anläggning | B68: Vägg CO2e [ton] | C68: CO2e /lagringskapacitet [ton] | D68: =D57 -> Förändring CO2e [ton] | E68: Betongplatta [m3] | F68: Platta CO2e [ton] | G68: Tot CO2e [ton] | H68: CO2e /lagringskapacitet [kg] | I68: Uddevalla - best | J68: =H69 -> 45.1772227
A69: Uddevalla | B69: =Resultat!B4 -> 687.062076 | C69: =B69/B40 -> 0.01597818781 | D69: =(C70-C69)*B40 -> 728.6119663 | E69: ='Material & Processer'!D3*0.75 -> 4500 | F69: =E69*F29/1000+(0.1*E69)*F36/1000 -> 1255.5585 | G69: =F69+B69 -> 1942.620576 | H69: =G69/B40*1000 -> 45.1772227 | I69: Sala - best | J69: =H70 -> 43.76142092
A70: Sala | B70: =B22*F31/1000+E22*F36/1000 -> 1119.370173 | C70: =B70/B41 -> 0.03292265215 | E70: =C22 -> 1320.792 | F70: =E70*F29/1000+F22*F36/1000 -> 368.5181383 | G70: =B70+F70 -> 1487.888311 | H70: =G70/B41*1000 -> 43.76142092 | I70: Uddevalla - worst | J70: =H73 -> 84.31691002
A71: Worst case stål vs betong | I71: Sala - worst | J71: =H74 -> 61.46673327
A72: Anläggning | B72: =B68 -> Vägg CO2e [ton] | C72: =C68 -> CO2e /lagringskapacitet [ton] | D72: =D68 -> Förändring CO2e [ton] | E72: =E68 -> Betongplatta [m3]
A73: Uddevalla | B73: =Resultat!C4 -> 1962.607131 | C73: =B73/B40 -> 0.04564202629 | D73: =(C74-C73)*B40 -> 63.14441965 | E73: ='Material & Processer'!D3*0.75 -> 4500 | F73: =E73*F27/1000+(E73*0.1)*F37/1000 -> 1663.02 | G73: =B73+F73 -> 3625.627131 | H73: =G73/B40*1000 -> 84.31691002
A74: Sala | B74: =B22*F30/1000+E22*F37/1000 -> 1601.75704 | C74: =B74/B41 -> 0.04711050117 | E74: =C22 -> 1320.792 | F74: =E74*F27/1000+F22*F37/1000 -> 488.1118915 | G74: =B74+F74 -> 2089.868931 | H74: =G74/B41*1000 -> 61.46673327

Sheet Maskiner, kringutr., elkabel
A1: Elevatorer och transportörer
A2: Benämning | D2: Maskintyp | E2: Antal ton | F2: Andel galvat stål | G2: Vikt galvat stål [ton] | H2: Andel gummi [kg] | I2: Vikt gummi [ton] | J2: Andel elektronik [ton] | K2: Vikt elektronik [kg]
A3: E41. SEH 63/33 250tph L=17,0 m | D3: Elevator | E3: 0.649 | F3: 0.8 | G3: =F3*E3 -> 0.5192 | H3: =0.1 -> 0.1 | I3: =E3*H3 -> 0.0649 | J3: =0.1 -> 0.1 | K3: =J3*E3 -> 0.0649
A4: E42. SEH 63/33 250tph L=42,75 m | D4: Elevator | E4: 1.633 | F4: 0.8 | G4: =F4*E4 -> 1.3064 | H4: =0.1 -> 0.1 | I4: =E4*H4 -> 0.1633 | J4: =0.1 -> 0.1 | K4: =J4*E4 -> 0.1633
A5: E43. SEH 50/18 100tph L=42,0 m | D5: Elevator | E5: 0.898 | F5: 0.8 | G5: 0.7184 | H5: 0.1 | I5: 0.0898 | J5: 0.1 | K5: 0.0898
A6: E44. SEH 50/18 100tph L=41,5 m | D6: Elevator | E6: 0.888 | F6: 0.8 | G6: 0.7104 | H6: 0.1 | I6: 0.0888 | J6: 0.1 | K6: 0.0888
A7: E45. SEH 63/33 250tph L=42,0 m | D7: Elevator | E7: 1.604 | F7: 0.8 | G7: 1.2832 | H7: 0.1 | I7: 0.1604 | J7: 0.1 | K7: 0.1604
A8: E51. SEH 63/33 250tph L=21,5 m | D8: Elevator | E8: 0.821 | F8: 0.8 | G8: 0.6568 | H8: 0.1 | I8: 0.0821 | J8: 0.1 | K8: 0.0821
A9: E52. SEH 63/33 250tph L=42,75 m | D9: Elevator | E9: 1.633 | F9: 0.8 | G9: 1.3064 | H9: 0.1 | I9: 0.1633 | J9: 0.1 | K9: 0.1633
A10: E53. SEH 50/18 100tph L=42,0 m | D10: Elevator | E10: 0.898 | F10: 0.8 | G10: 0.7184 | H10: 0.1 | I10: 0.0898 | J10: 0.1 | K10: 0.0898
A11: E54. SEH 50/18 100tph L=41,5 m | D11: Elevator | E11: 0.888 | F11: 0.8 | G11: 0.7104 | H11: 0.1 | I11: 0.0888 | J11: 0.1 | K11: 0.0888
A12: E55. SEH 63/33 250tph L=42,0 m | D12: Elevator | E12: 1.604 | F12: 0.8 | G12: 1.2832 | H12: 0.1 | I12: 0.1604 | J12: 0.1 | K12: 0.1604
A13: E61. SEH 80/33 500tph L=32,75 m | D13: Elevator | E13: 3.275 | F13: 0.8 | G13: 2.62 | H13: 0.1 | I13: 0.3275 | J13: 0.1 | K13: 0.3275
A14: E62. SEH 80/33 500tph L=42,0 m | D14: Elevator | E14: 4.2 | F14: 0.8 | G14: 3.36 | H14: 0.1 | I14: 0.42 | J14: 0.1 | K14: 0.42
A15: E64. SEH 50/18 60tph L=14,0 m | D15: Elevator | E15: 0.205 | F15: 0.8 | G15: 0.164 | H15: 0.1 | I15: 0.0205 | J15: 0.1 | K15: 0.0205
A16: T72. KTH 50/51 250tph L=42,6 m | D16: Transportör | E16: 0.917 | F16: 0.75 | G16: =E16*F16 -> 0.68775 | H16: 0.15 | I16: =H16*E16 -> 0.13755 | J16: 0.1 | K16: 0.0917
A17: T73. KTH 50/51 250tph L=39,2 m | D17: Transportör | E17: 2.865 | F17: 0.75 | G17: =E17*F17 -> 2.14875 | H17: 0.15 | I17: =H17*E17 -> 0.42975 | J17: 0.1 | K17: 0.2865
A18: T74. KTHb 30/33 100tph L=30,4 m | D18: Transportör | E18: 0.229 | F18: 0.75 | G18: 0.17175 | H18: 0.15 | I18: 0.03435 | J18: 0.1 | K18: 0.0229
A19: T75. KTH 50/51 250tph L=13,6 m | D19: Transportör | E19: 1.948 | F19: 0.75 | G19: 1.461 | H19: 0.15 | I19: 0.2922 | J19: 0.1 | K19: 0.1948
A20: T76. KTH 50/51 250tph L=12,6 m | D20: Transportör | E20: 0.917 | F20: 0.75 | G20: 0.68775 | H20: 0.15 | I20: 0.13755 | J20: 0.1 | K20: 0.0917
A21: T77. KTH 30/33 100tph L=39,2 m | D21: Transportör | E21: 1.146 | F21: 0.75 | G21: 0.8595 | H21: 0.15 | I21: 0.1719 | J21: 0.1 | K21: 0.1146
A22: T78. KTHb 50/51 250tph L=31,6 m | D22: Transportör | E22: 0.573 | F22: 0.75 | G22: 0.42975 | H22: 0.15 | I22: 0.08595 | J22: 0.1 | K22: 0.0573
A23: T79. KTH 50/51 250tph L=47,6 m | D23: Transportör | E23: 3.094 | F23: 0.75 | G23: 2.3205 | H23: 0.15 | I23: 0.4641 | J23: 0.1 | K23: 0.3094
A24: T85. KTH 20/33 60tph ? | D24: Transportör | E24: 0.44 | F24: 0.75 | G24: 0.33 | H24: 0.15 | I24: 0.066 | J24: 0.1 | K24: 0.044
A25: T91. KTH 50/51 250tph L=31,3 m | D25: Transportör | E25: 0.917 | F25: 0.75 | G25: 0.68775 | H25: 0.15 | I25: 0.13755 | J25: 0.1 | K25: 0.0917
A26: T93. KTH 50/51 250tph L=39,2 m | D26: Transportör | E26: 2.865 | F26: 0.75 | G26: 2.14875 | H26: 0.15 | I26: 0.42975 | J26: 0.1 | K26: 0.2865
A27: T94. KTHb 30/33 100tph L=30,4 m | D27: Transportör | E27: 0.229 | F27: 0.75 | G27: 0.17175 | H27: 0.15 | I27: 0.03435 | J27: 0.1 | K27: 0.0229
A28: T95. KTH 50/51 250tph L=L=22,8 m | D28: Transportör | E28: 1.948 | F28: 0.75 | G28: 1.461 | H28: 0.15 | I28: 0.2922 | J28: 0.1 | K28: 0.1948
A29: T96. KTH 50/51 250tph L=22,0 m | D29: Transportör | E29: 0.917 | F29: 0.75 | G29: 0.68775 | H29: 0.15 | I29: 0.13755 | J29: 0.1 | K29: 0.0917
A30: T97. KTH 30/33 100tph L=39,2 m | D30: Transportör | E30: 1.146 | F30: 0.75 | G30: 0.8595 | H30: 0.15 | I30: 0.1719 | J30: 0.1 | K30: 0.1146
A31: T98. KTH 50/51 250tph L=31,6 m | D31: Transportör | E31: 0.573 | F31: 0.75 | G31: 0.42975 | H31: 0.15 | I31: 0.08595 | J31: 0.1 | K31: 0.0573
A32: T99. KTH 50/51 250tph L=29,8 m | D32: Transportör | E32: 3.094 | F32: 0.75 | G32: 2.3205 | H32: 0.15 | I32: 0.4641 | J32: 0.1 | K32: 0.3094
A33: T105. KTH 70/64 500tph L=26,0 m | D33: Transportör | E33: 3.875 | F33: 0.75 | G33: 2.90625 | H33: 0.15 | I33: 0.58125 | J33: 0.1 | K33: 0.3875
A34: T110. KTHg 70/64 500tph L=8,0 m | D34: Transportör | E34: 3.444 | F34: 0.75 | G34: 2.583 | H34: 0.15 | I34: 0.5166 | J34: 0.1 | K34: 0.3444
A35: T111. KTH 70/64 500tph L=37,2 m | D35: Transportör | E35: 4.306 | F35: 0.75 | G35: 3.2295 | H35: 0.15 | I35: 0.6459 | J35: 0.1 | K35: 0.4306
A36: T121. KTH 20/33 5tph L=6,0 m | D36: Transportör | E36: 0.028 | F36: 0.75 | G36: 0.021 | H36: 0.15 | I36: 0.0042 | J36: 0.1 | K36: 0.0028
A37: T123. KTH 20/33 10tph L=4,0 m | D37: Transportör | E37: 0.037 | F37: 0.75 | G37: 0.02775 | H37: 0.15 | I37: 0.00555 | J37: 0.1 | K37: 0.0037
A38: T125. KTH 20/33 10tph L=7,5 m | D38: Transportör | E38: 0.069 | F38: 0.75 | G38: 0.05175 | H38: 0.15 | I38: 0.01035 | J38: 0.1 | K38: 0.0069
E39: =SUM(E3:E38) -> 54.773 | G39: =SUM(G3:G38) -> 42.03955 | I39: =SUM(I3:I38) -> 7.25615 | K39: =SUM(K3:K38) -> 5.4773
A40: Fläktar och filter (JKF)
A41: Benämning | B41: Vikt | E41: Vikt kg | F41: Viktandel galvat stål | G41: Vikt galvat stål [ton] | H41: Viktandel stål | I41: Vikt stål [ton] | J41: Viktandel RF-stål | K41: Vikt RF-stål [ton] | L41: Viktandel gummi | M41: Vikt gummi [ton] | N41: Viktandel plast [ton] | O41: Vikt plast [ton] | P41: Viktandel elektronik | Q41: Vikt elektronik [kg]
A43: BF-55EC 3,0 + 1,0 m | B43: 1880 | F43: =0.85 -> 0.85 | G43: =F43*B43 -> 1598 | L43: =0.1 -> 0.1 | M43: =L43*B43 -> 188 | P43: =0.05 -> 0.05 | Q43: =P43*B43 -> 94
A44: BF-55EC 4,0 + 1,0 m | B44: 2050 | F44: =0.85 -> 0.85 | G44: =F44*B44 -> 1742.5 | L44: =0.1 -> 0.1 | M44: =L44*B44 -> 205 | P44: =0.05 -> 0.05 | Q44: =P44*B44 -> 102.5
A45: V60MTD | B45: 775 | F45: =0.85 -> 0.85 | G45: =F45*B45 -> 658.75 | L45: =0.1 -> 0.1 | M45: 77.5 | P45: =0.05 -> 0.05 | Q45: 38.75
A46: V80MTD | B46: 1160 | F46: =0.85 -> 0.85 | G46: =F46*B46 -> 986 | L46: =0.1 -> 0.1 | M46: 116 | P46: =0.05 -> 0.05 | Q46: 58
A47: Sluse JK-50S | B47: 60 | F47: =0.85 -> 0.85 | G47: =F47*B47 -> 51 | L47: =0.1 -> 0.1 | M47: 6 | P47: =0.05 -> 0.05 | Q47: 3
G48: =SUM(G43:G47) -> 5036.25 | M48: =SUM(M43:M47) -> 592.5 | Q48: =SUM(Q43:Q47) -> 296.25
A49: Rensmaskin & aspiratörer (Westrup)
A50: Benämning | B50: Vikt | E50: Vikt [ton] | F50: Viktandel galvat stål | G50: Vikt galvat stål [ton] | H50: Viktandel stål | I50: Vikt stål kg | J50: Viktandel RF-stål | K50: Vikt RF-stål [ton] | L50: Viktandel gummi | M50: Vikt gummi [ton] | N50: Viktandel plast [ton] | O50: Vikt plast [ton] | P50: Viktandel elektronik | Q50: Vikt elektronik [kg]
A52: 1 st Rensmaskin CC-1750-E50 | B52: 7100 | H52: 0.9 | I52: =H52*B52 -> 6390 | L52: 0.05 | M52: =L52*B52 -> 355 | P52: 0.05 | Q52: =P52*B52 -> 355
A54: 1 st ASP. / Halmtrumma (Dubbel) HG-2500 | B54: 2000 | H54: 0.9 | I54: =H54*B54 -> 1800 | L54: 0.05 | M54: =L54*B54 -> 100 | P54: 0.05 | Q54: =P54*B54 -> 100
A55: 2 st ASP. / Halmtrumma ASP-1250-A2/B3 | B55: 3000 | H55: 0.9 | I55: =H55*B55 -> 2700 | L55: 0.05 | M55: 150 | P55: 0.05 | Q55: 150
I56: =SUM(I52:I55) -> 10890 | M56: =SUM(M52:M55) -> 605 | Q56: =SUM(Q52:Q55) -> 605
A58: Sveperskruvar (elica)
A59: Pos. | B59: Benämning | C59: Vikt Sveperskruvar | D59: Vikt [ton] | F59: Viktandel galvat stål | G59: Vikt galvat stål [ton] | H59: Viktandel stål | I59: Vikt stål [ton] | J59: Viktandel RF-stål | K59: Vikt RF-stål [ton] | L59: Viktandel gummi | M59: Vikt gummi [ton] | N59: Viktandel plast [ton] | O59: Vikt plast [ton] | P59: Viktandel elektronik | Q59: Vikt elektronik [kg]
A61: 63.5 | B61: 3 st Svepertransportörer | C61: 1200 | D61: =C61*3/1000 -> 3.6 | G61: =F61*D61 -> 0 | H61: 0.85 | I61: =H61*C61 -> 1020 | L61: 0.1 | M61: =L61*D61 -> 0.36 | P61: =0.05 -> 0.05 | Q61: =P61*D61 -> 0.18
A62: 64.5 | B62: 5 st Svepertransportörer | C62: 1500 | D62: =C62*5/1000 -> 7.5 | G62: =F62*D62 -> 0 | H62: 0.85 | I62: =H62*C62 -> 1275 | L62: 0.1 | M62: =L62*D62 -> 0.75 | P62: =0.05 -> 0.05 | Q62: =P62*D62 -> 0.375
G63: =SUM(G61:G62) -> 0 | I63: =SUM(I61:I62) -> 2295 | M63: =SUM(M61:M62) -> 1.11 | Q63: =SUM(Q61:Q62) -> 0.555
A67: Luftningsfläktar (Åkerstedts)
A68: Benämning | B68: Vikt Fläktar | D68: Vikt [ton] | F68: Viktandel galvat stål | G68: Vikt galvat stål [kg] | H68: Viktandel stål | I68: Vikt stål [kg] | J68: Viktandel RF-stål | K68: Vikt RF-stål [ton] | L68: Viktandel gummi | M68: Vikt gummi [kg] | N68: Viktandel plast [ton] | O68: Vikt plast [ton] | P68: Viktandel elektronik | Q68: Vikt elektronik [kg]
A70: 4 st Beluftningsfläktar, 22 kW | B70: 1480 | F70: 0.85 | G70: =F70*B70 -> 1258 | L70: 0.05 | M70: =L70*B70 -> 74 | P70: =0.1 -> 0.1 | Q70: =P70*B70 -> 148
A71: 4 st Beluftningsfläktar, 22 kW | B71: 1480 | F71: 0.85 | G71: =F71*B71 -> 1258 | L71: 0.05 | M71: =L71*B71 -> 74 | P71: =0.1 -> 0.1 | Q71: =P71*B71 -> 148
A73: 2 st Beluftningsfläktar, 22 kW | B73: 740 | F73: 0.85 | G73: =F73*B73 -> 629 | L73: 0.05 | M73: =L73*B73 -> 37 | P73: 0.1 | Q73: 74
A74: 1 st Beluftningsfläkt, 22 kW | B74: 370 | F74: 0.85 | G74: =F74*B74 -> 314.5 | L74: 0.05 | M74: =L74*B74 -> 18.5 | P74: 0.1 | Q74: 37
A76: 6 st Beluftningsfläktar, 22 kW | B76: 2220 | F76: 0.85 | G76: =F76*B76 -> 1887 | L76: 0.05 | M76: =L76*B76 -> 111 | P76: 0.1 | Q76: 222
A77: 10 st Beluftningsfläktar, 22 kW | B77: 3700 | F77: 0.85 | G77: =F77*B77 -> 3145 | L77: 0.05 | M77: =L77*B77 -> 185 | P77: 0.1 | Q77: 370
A79: 2 st fläktar till tork FAMP-090, 90 kW | B79: 3600 | C79: 1105 | F79: 0.85 | G79: =F79*B79 -> 3060 | L79: 0.05 | M79: =L79*B79 -> 180 | P79: 0.1 | Q79: 360
A80: 2 st fläktar till tork FAMP-090, 90 kW | B80: 3600 | C80: 1105 | F80: 0.85 | G80: =F80*B80 -> 3060 | L80: 0.05 | M80: =L80*B80 -> 180 | P80: 0.1 | Q80: 360
A82: 2 st fläktar kylluft tork FKLP-080, 18,5 kW | B82: 740 | F82: 0.85 | G82: =F82*B82 -> 629 | L82: 0.05 | M82: =L82*B82 -> 37 | P82: 0.1 | Q82: 74
A83: 2 st fläktar kylluft tork FKLP-080, 18,5 kW | B83: 740 | F83: 0.85 | G83: =F83*B83 -> 629 | L83: 0.05 | M83: =L83*B83 -> 37 | P83: 0.1 | Q83: 74
A85: Summa | B85: =SUM(B70:B83) -> 18670 | G85: =SUM(G70:G83) -> 15869.5 | M85: =SUM(M70:M83) -> 933.5 | Q85: =SUM(Q70:Q83) -> 1867
A89: Behållarvåg (Danvaegt)
B90: Vikt [kg] | D90: Vikt [ton] | F90: Viktandel galvat stål | G90: Vikt galvat stål [ton] | H90: Viktandel stål | I90: Vikt stål [ton] | J90: Viktandel RF-stål | K90: Vikt RF-stål [ton] | L90: Viktandel gummi | M90: Vikt gummi [ton] | N90: Viktandel plast [ton] | O90: Vikt plast [ton] | P90: Viktandel elektronik | Q90: Vikt elektronik [kg] | R90: Alumnium [kg]
B91: =SUM(I91:R91) -> 7094 | I91: 7000 | K91: 6 | M91: 25 | O91: 10 | Q91: 3 | R91: 50
A93: Kompressor (Atlas Copco)
D94: Vikt [ton] | F94: Viktandel galvat stål | G94: Vikt galvat stål [ton] | H94: Viktandel stål | I94: Vikt stål [ton] | J94: Viktandel RF-stål | K94: Vikt RF-stål [ton] | L94: Viktandel gummi | M94: Vikt gummi [ton] | N94: Viktandel plast [ton] | O94: Vikt plast [ton] | P94: Viktandel elektronik | Q94: Vikt elektronik [kg]
A95: Kompressor | B95: 860 | H95: =0.8 -> 0.8 | I95: =H95*B95 -> 688 | L95: =0.1 -> 0.1 | M95: =L95*B95 -> 86 | P95: =0.1 -> 0.1 | Q95: =P95*B95 -> 86
A96: BD-tork | B96: 466 | H96: =0.8 -> 0.8 | I96: =H96*B96 -> 372.8 | L96: =0.1 -> 0.1 | M96: =L96*B96 -> 46.6 | P96: =0.1 -> 0.1 | Q96: =P96*B96 -> 46.6
A97: Tank | B97: 421 | H97: 0.8 | I97: =H97*B97 -> 336.8 | L97: 0.1 | M97: =L97*B97 -> 42.1 | P97: 0.1 | Q97: =P97*B97 -> 42.1
I98: =SUM(I95:I97) -> 1397.6 | M98: =SUM(M95:M97) -> 174.7 | Q98: =SUM(Q95:Q97) -> 174.7
A99: Magnet (Goudsmith)
D100: Vikt [ton] | F100: Viktandel galvat stål | G100: Vikt galvat stål [ton] | H100: Viktandel stål | I100: Vikt stål [ton] | J100: Viktandel RF-stål | K100: Vikt RF-stål [ton] | L100: Viktandel gummi | M100: Vikt gummi [ton] | N100: Viktandel plast [ton] | O100: Vikt plast [ton] | P100: Viktandel elektronik | Q100: Vikt elektronik [kg]
A101: Magnet [kg] | B101: 200 | D101: 0.2 | H101: 0.75 | I101: =H101*D101 -> 0.15 | L101: 0.05 | M101: =L101*B101 -> 10 | P101: 0.2 | Q101: =P101*B101 -> 40
A102: Utlastningsbälgar (WAM) ("snabel" för utlastning av säd)
B103: vikt kg | D103: Vikt [ton] | F103: Viktandel galvat stål | G103: Vikt galvat stål [ton] | H103: Viktandel stål | I103: Vikt stål [ton] | J103: Viktandel RF-stål | K103: Vikt RF-stål [ton] | L103: Viktandel gummi | M103: Vikt gummi [ton] | N103: Viktandel plast [ton] | O103: Vikt plast [ton] | P103: Viktandel elektronik | Q103: Vikt elektronik [kg]
A104: Utlastningsbälgar | B104: 400 | D104: =0.4 -> 0.4 | H104: 0.6 | I104: =H104*B104 -> 240 | L104: 0.35 | M104: =L104*B104 -> 140 | P104: 0.05 | Q104: =P104*B104 -> 20
A106: Avfallscontainrar
A107: Benämning | B107: Vikt Container kg | D107: Vikt [ton] | F107: Viktandel galvat stål | G107: Vikt galvat stål [ton] | H107: Viktandel stål | I107: Vikt stål [ton] | J107: Viktandel RF-stål | K107: Vikt RF-stål [ton] | L107: Viktandel gummi | M107: Vikt gummi [ton] | N107: Viktandel plast [ton] | O107: Vikt plast [ton] | P107: Viktandel elektronik | Q107: Vikt elektronik [kg]
A109: 6 st Avfallscontainer | B109: 72000 | D109: =B109/1000 -> 72 | H109: 0.95 | I109: =D109*H109 -> 68.4 | P109: 0.05 | Q109: =P109*B109 -> 3600
A111: Styrskåp
A112: Benämning | B112: Vikter Styrskåp | D112: Vikt [ton] | F112: Viktandel galvat stål | G112: Vikt galvat stål [ton] | H112: Viktandel stål | I112: Vikt stål [ton] | J112: Viktandel RF-stål | K112: Vikt RF-stål [ton] | L112: Viktandel gummi | M112: Vikt gummi [ton] | N112: Viktandel plast [ton] | O112: Vikt plast [ton] | P112: Viktandel elektronik | Q112: Vikt elektronik [kg]
A113: 2 st Motorställverk (MCC | B113: 12000 | D113: =B113*2/1000 -> 24 | P113: 1 | Q113: =P113*D113 -> 24
A114: 1 st PLC-skåp | B114: 1200 | D114: =B114/1000 -> 1.2 | P114: 1 | Q114: =P114*D114 -> 1.2
A115: 1-3 extra skåp i de övre planen | B115: 1500 | D115: =B115*2/1000 -> 3 | P115: 1 | Q115: 3
G116: =SUM(G113:G115) -> 0 | I116: =SUM(I113:I115) -> 0 | K116: =SUM(K113:K115) -> 0 | L116: 0 | M116: 0 | N116: 0 | O116: 0 | Q116: =SUM(Q113:Q115) -> 28.2
A119: Centraldammsugare (Lajac)
A120: Benämning | B120: Vikt Dammsugare | F120: Viktandel galvat stål | G120: Vikt galvat stål [ton] | H120: Viktandel stål | I120: Vikt stål [ton] | J120: Viktandel RF-stål | K120: Vikt RF-stål [ton] | L120: Viktandel gummi | M120: Vikt gummi [ton] | N120: Viktandel plast [ton] | O120: Vikt plast [ton] | P120: Viktandel elektronik | Q120: Vikt elektronik [kg]
A122: Stoftavskiljare SDCH-3-HV | B122: 120 | I122: 120 | Q122: 5
A123: Rotorsluss MD-200 A | B123: 100 | I123: 100 | Q123: 20
A124: Explosionsventil EVN3.0 / SDCH-3 | B124: 50 | I124: 50
A125: Rotspump TYR 15kW i ljudkabinett | B125: 312 | I125: 312 | Q125: 85
A126: El/Styrskåp | B126: 20 | I126: 20 | Q126: 20
A127: Rörsystem | B127: 500 | I127: 500 | M127: 10
A128: Summa | I128: =SUM(I122:I127) -> 1102 | M128: =SUM(M121:M127) -> 10 | Q128: =SUM(Q122:Q127) -> 130
A130: Templinor - sensor
A131: Benämning | B131: Vikt Temperaturlinor | D131: Vikt [ton] | F131: Viktandel galvat stål | G131: Vikt galvat stål [ton] | H131: Viktandel stål | I131: Vikt stål [ton] | J131: Viktandel RF-stål | K131: Vikt RF-stål [ton] | L131: Viktandel gummi | M131: Vikt gummi [ton] | N131: Viktandel plast [ton] | O131: Vikt plast [ton] | P131: Viktandel elektronik | Q131: Vikt elektronik [kg]
A133: 4 st Templinor till rundsilos D1-D4 | B133: 1200 | D133: =4*B133/1000 -> 4.8 | P133: 1 | Q133: =P133*D133 -> 4.8
A134: 4 st Templinor till rundsilos E1-E4 | B134: 1200 | D134: =4*B134/1000 -> 4.8 | P134: 1 | Q134: =P134*D134 -> 4.8
A136: 2 st Templinor till rundsilos A1 & A5 | B136: 600 | D136: =2*B136/1000 -> 1.2 | P136: 1 | Q136: 1.2
A137: 1 st Templina till rundsilo B1 | B137: 300 | D137: =1*B137/1000 -> 0.3 | P137: 1 | Q137: 0.3
A139: 3 st Templinor till rundsilos A2-A4 | B139: 900 | D139: =3*B139/1000 -> 2.7 | P139: 1 | Q139: 2.7
A141: 5 st Templinor till rundsilos B2-B6 | B141: 1500 | D141: =5*B141/1000 -> 7.5 | P141: 1 | Q141: 7.5
D142: =SUM(D133:D141) -> 21.3 | Q142: =SUM(Q133:Q141) -> 21.3
A143: Övergångar (Planevo)
A144: Benämning | B144: Vikt Övergångar mm | D144: Vikt [ton] | F144: Viktandel galvat stål | G144: Vikt galvat stål [ton] | H144: Viktandel stål | I144: Vikt stål [ton] | J144: Viktandel RF-stål | K144: Vikt RF-stål [ton] | L144: Viktandel gummi | M144: Vikt gummi [ton] | N144: Viktandel plast [ton] | O144: Vikt plast [ton] | P144: Viktandel elektronik | Q144: Vikt elektronik [kg]
A146: Diverse Övergångar mm. | B146: 1500 | D146: =F146*B146/1000 -> 1.5 | F146: 1 | G146: =D146*F146 -> 1.5
A149: Elkabel
A150: Tillverkare | B150: Material | C150: Enhet | D150: Mängd [m] | E150: Källa, mängd | F150: A1 - A5 | G150: Tot CO2 [ton] | H150: A1 eller A1-A3 | I150: A2 | J150: A3 | K150: A4 | L150: A5 | M150: Länk EPD/källa
A151: Prysmian | B151: eqlq 3g1,5 | C151: m | D151: 33000 | E151: kg CO2e/m | F151: =SUM(H151:L151) -> 0.476 | G151: =F151*D151/1000 -> 15.708 | H151: 0.344 | I151: 0.0433 | J151: 0.0512 | K151: =0.0248 -> 0.0248 | L151: 0.0127 | M151: https://www.epd-norge.no/getfile.php/1347961-1699876449/EPDer/Byggevarer/NEPD-5374-4678_ACEFLEX-ECO-CABLE-PURE-3G1-5mm-%281%29.pdf
A152: Prysmian | B152: eqlq 4g1,5 | C152: m | D152: 20000 | E152: kg CO2e/m | F152: =SUM(H152:L152) -> 0.6346666667 | G152: =F152*D152/1000 -> 12.69333333 | H152: =H151*4/3 -> 0.4586666667 | I152: =I151*4/3 -> 0.05773333333 | J152: 0.06826666667 | K152: 0.03306666667 | L152: 0.01693333333 | M152: Baserad på 3x1,5 mm2, multiplicerat med 4/3
A153: Prysmian | B153: eqlq 5g1,5 | C153: m | D153: 500 | E153: kg CO2e/m | F153: 0.6516 | G153: =F153*D153/1000 -> 0.3258 | H153: 0.492 | I153: 0.0572 | J153: 0.0698 | K153: 0.0156 | L153: 0.017 | M153: https://www.epd-norge.no/epder/bygg/elektroniske-og-elektriske-komponenter-kabler-produkter/aceflex-eco-cable-pure-5g1-5mm
A154: Prysmian | B154: eqlq 4g2,5 | C154: m | D154: 500 | E154: kg CO2e/m | F154: 1.9132 | G154: =F154*D154/1000 -> 0.9566 | H154: 1.66 | I154: 0.0304 | J154: 0.129 | K154: 0.0501 | L154: 0.0437 | M154: https://www.epd-norge.no/getfile.php/1341426-1688982804/EPDer/Byggevarer/NEPD-4645-3927_LAPP--LFLEX--CLASSIC-110-CY-4G2-5mm--Elnr-1090681.pdf
A155: Prysmian | B155: eqlq 5g2,5 | C155: m | D155: 700 | E155: kg CO2e/m | F155: 0.9212 | G155: 0.64484 | H155: 0.688 | I155: 0.0731 | J155: 0.0923 | K155: 0.0447 | L155: 0.0231 | M155: https://www.epd-norge.no/getfile.php/1347950-1699876021/EPDer/Byggevarer/NEPD-5373-4680_ACEFLEX-ECO-CABLE-PURE-5G2-5mm--.pdf
A156: Prysmian | B156: EXQJ Pure 3x6/6 | C156: m | D156: 3500 | E156: kg CO2e/m | F156: 1.9059 | G156: 6.67065 | H156: 1.61 | I156: 0.0974 | J156: 0.0779 | K156: 0.0176 | L156: 0.103 | M156: https://www.epd-norge.no/getfile.php/1348541-1701443402/EPDer/Byggevarer/NEPD-5467-4780_AFUX-HF-C-PRo-500V-3x6-S-K6M-400.pdf
A157: Prysmian | B157: FXQJ-EMC Pure 3x16 fr/16 | C157: m | D157: 3500 | E157: kg CO2e/m | F157: =SUM(H157:L157)*875/285 -> 3.095350877 | G157: 10.83372807 | H157: 0.682 | K157: 0.0162 | L157: 0.31 | M157: https://www.e-nummersok.se/infoDocs/EPD/EPD_18020_0009170.pdf
A158: Prysmian | B158: AXQJ-EMC Pure 4x95/35 | C158: m | D158: 800 | E158: kg CO2e/m | F158: =SUM(H158:L158) -> 22.842 | G158: 18.2736 | H158: 21.3 | I158: 0.362 | J158: 0.514 | K158: 0.205 | L158: 0.461 | M158: https://www.epd-norge.no/getfile.php/1356013-1709899023/EPDer/Byggevarer/NEPD-6248-5514_SE-N1XZ1-AS-4G95mm-.pdf
A159: Prysmian | B159: FXQJ-EMC Pure 3x25 fr/16 | C159: m | D159: 1000 | E159: kg CO2e/m | F159: =SUM(H159:L159) -> 1.5753125 | G159: 1.5753125 | H159: =H157*25/16 -> 1.065625 | K159: =K157*25/16 -> 0.0253125 | L159: 0.484375 | M159: Baserad på FXQJ-EMC Pure 3x16 fr/16
A160: Prysmian | B160: AXQJ-EMC Pure 3x95/35 | C160: m | D160: 1000 | E160: kg CO2e/m | F160: =SUM(H160:L160) -> 22.955 | G160: 22.955 | H160: 21.6 | I160: 0.315 | J160: 0.301 | K160: 0.239 | L160: 0.5 | M160: https://www.epd-norge.no/getfile.php/1351617-1704881598/EPDer/Byggevarer/NEPD-5757-5041_AXALJ-TT-Eco-Cable-3x95-35-ALCL-24kV.pdf
A161: Prysmian | B161: EQLR 14x1,5 750V ljgrå | C161: m | D161: 1000 | E161: kg CO2e/m | F161: =SUM(H161:M161) -> 1.28079 | G161: 1.28079 | H161: =H163*7 -> 1.078 | I161: =I163*7 -> 0.06076 | J161: 0.0966 | K161: 0.04543 | M161: Baserad på FQAR-PG 2x2x1
A162: Prysmian | B162: FQAR-G Pure 4x1 | C162: m | D162: 2000 | E162: kg CO2e/m | F162: =SUM(H162:M162) -> 0.36594 | G162: 0.73188 | H162: =H163*2 -> 0.308 | I162: =I163*2 -> 0.01736 | J162: 0.0276 | K162: 0.01298 | M162: Baserad på FQAR-PG 2x2x1
A163: Prysmian | B163: FQAR-PG 2x2x1 | C163: m | D163: 5000 | E163: kg CO2e/m | F163: =SUM(H163:M163) -> 0.18297 | G163: 0.91485 | H163: 0.154 | I163: 0.00868 | J163: 0.0138 | K163: 0.00649 | M163: https://www.epd-norge.no/getfile.php/1340543-1689245571/EPDer/Byggevarer/NEPD-4562-3817_TwinLed-light-750V-2x1-5mm2-FR-.pdf
A164: Templina | B164: Templina - | C164: ton | D164: =D142 -> 21.3 | E164: kg CO2e/ton | F164: =SUM(H164:M164) -> 4068.376068 | G164: 86.65641026 | H164: =H151/0.000117 -> 2940.17094 | I164: =I151/0.000117 -> 370.0854701 | J164: 437.6068376 | K164: 211.965812 | L164: 108.5470085 | M164: Baserad på 3x1,5mm2, 0,117kg/m, 0,000117 ton/m
F166: Summa | G166: =SUM(G151:G164) -> 180.2207942
A170: Resurssammanställning
A171: Databas | B171: Material | C171: Enhet | D171: Mängd [ton,m] | E171: Källa, mängd | F171: A1 - A3 | G171: Tot CO2 [ton] | H171: A1-A3 | I171: A2 | J171: A3 | K171: A4 | L171: A5 | M171: Länk EPD/källa
A172: Boverket | B172: Galvade stålprodukter | C172: kg CO2e/kg | D172: =G39+G48/1000+G63+G85/1000+G146 -> 64.4453 | E172: Tornum möte | F172: =SUM(H172:J172)+L172 -> 3330 | G172: =(F172*D172/1000) -> 214.602849 | H172: 3330
A173: Boverket | B173: Stål (primär råvara) | C173: kg CO2e/kg | D173: =I91/1000+I128/1000+I85/1000+I56/1000+I63/1000+(I95+I96+I97)/1000+I101+I104/1000+I109+I190 -> 95.2746 | E173: Tornum möte | F173: 2.52 | G173: =F173*D173 -> 240.091992 | H173: 2.52
A174: Boverket | B174: Rostfria vattenrör | C174: kg CO2e/kg | D174: =K91/1000 -> 0.006 | E174: Tornum möte | F174: =SUM(H174:M174) -> 4.5 | G174: =D174*F174 -> 0.027 | H174: 4.5
A175: Boverket | B175: Aluminium (primär råvara) | C175: kg CO2e/kg | D175: =R91/1000 -> 0.05 | E175: Tornum möte | F175: 10 | G175: =F175*D175/1000 -> 0.0005 | H175: 10
A176: Oekubau | B176: Gummi/plast | C176: kg CO2e/kg | D176: =M48/1000+I39+M56/1000+M63/1000+M85/1000+M98/1000+M91/1000+M101/1000+M104/1000+M128/1000+O91/1000+M190 -> 9.95796 | E176: Tornum möte | F176: =SUM(H176:M176) -> 3.64 | G176: =F176*D176 -> 36.2469744 | H176: 3.64 | M176: https://oekobaudat.de/OEKOBAU.DAT/datasetdetail/process.xhtml?uuid=eee26d67-c05d-4c1c-8502-0e42c91f37fc&version=20.23.050&stock=OBD_2023_I&lang=en
A177: CO2 data FI | B177: Elektronik (elcentral) | C177: kg CO2e/kg | D177: =K39+Q48/1000+Q56/1000+Q63+Q85/1000+Q91/1000+Q98/1000+Q101/1000+Q104/1000+Q109/1000+Q142/1000+Q116/1000+Q128/1000+Q190/1000 -> 12.82475 | E177: Tornum möte | F177: =2.78 -> 2.78 | G177: =F177*D177 -> 35.652805 | H177: 2.78 | K177: - | M177: https://co2data.fi/rakentaminen/#sv_id7000000569
A178: Prysmian | B178: Elkabel | C178: kg CO2e/m | D178: =SUM(D151:D163)+D164/0.000117 -> 254551.2821 | E178: Tornum möte | F178: Varierande | G178: =G166 -> 180.2207942 | M178: https://www.epd-norge.no/epder/bygg/elektroniske-og-elektriske-komponenter-kabler-produkter/aceflex-eco-cable-pure-5g1-5mm
G179: =SUM(G172:G178) -> 706.8429146
A182: Torkar & Fördelare
A183: Benämning | B183: Vikt Torkar | E183: Vikt [ton] | F183: Viktandel galvat stål | G183: Vikt galvat stål [ton] | H183: Viktandel stål | I183: Vikt stål [ton] | J183: Viktandel RF-stål | K183: Vikt RF-stål [ton] | L183: Viktandel gummi | M183: Vikt gummi [ton] | N183: Viktandel plast [ton] | O183: Vikt plast [ton] | P183: Viktandel elektronik | Q183: Vikt elektronik [kg] | R183: Viktandel stenull | S183: Vikt stenull
A185: 1 st Spannmålstork REX-6-20-4 | B185: 35000 | E185: =B185/1000 -> 35 | F185: =0.9 -> 0.9 | G185: =F185*E185 -> 31.5 | P185: 0.1 | Q185: =P185*E185 -> 3.5
A186: 1 st Spannmålstork REX-6-20-4 | B186: 35000 | E186: =B186/1000 -> 35 | F186: =0.9 -> 0.9 | G186: =F186*E186 -> 31.5 | P186: 0.1 | Q186: =P186*E186 -> 3.5
A187: Isoleringskassetter 2 st | B187: 4000 | E187: =B187/1000*2 -> 8 | F187: 0.1 | G187: =F187*E187 -> 0.8 | R187: 0.9 | S187: =R187*E187 -> 7.2
A188: 2 st Stoftavskiljare CDS-75 | B188: 2000 | E188: =B188/1000 -> 2 | H188: 0.95 | I188: =H188*E188 -> 1.9 | L188: =0.05 -> 0.05 | M188: =L188*E188 -> 0.1
A189: 2 st Stoftavskiljare CDS-75 | B189: 2000 | E189: =B189/1000 -> 2 | H189: 0.95 | I189: =H189*E189 -> 1.9 | L189: =0.05 -> 0.05 | M189: =L189*E189 -> 0.1
G190: =SUM(G185:G189) -> 63.8 | I190: =SUM(I188:I189) -> 3.8 | M190: =SUM(M188:M189) -> 0.2 | Q190: =SUM(Q185:Q186) -> 7
A192: Databas | B192: Produkt | D192: Mängd [ton] | E192: Källa mängd | F192: A1 - A5 | G192: Tot CO2 [ton] | H192: A1 eller A1-A3 | I192: A2 | J192: A3 | K192: A4 | L192: A5
A193: Boverket | B193: Galvade ståprodukter | C193: ton/ton | D193: =G190 -> 63.8 | E193: Tornum | F193: =SUM(H193:K193) -> 3.33 | G193: =F193*D193 -> 212.454 | H193: ='Material & Processer'!H9/1000 -> 3.33 | I193: - | J193: - | K193: - | L193: -
A194: Boverket | B194: Isolering (stenull) | C194: ton/ton | D194: =S187 -> 7.2 | E194: Tornum | F194: =SUM(H194:K194) -> 1.6 | G194: =D194*F194 -> 11.52 | H194: 1.6 | I194: - | J194: - | K194: - | L194: - | M194: Boverket
A195: CO2 data FI | B195: Elektronik | C195: ton/ton | D195: =Q185+Q186 -> 7 | E195: Tornum | F195: =SUM(H195:L195) -> 2.78 | G195: =F195*H195 -> 7.7284 | H195: =2.78 -> 2.78 | I195: - | J195: - | K195: - | L195: - | M195: https://co2data.fi/rakentaminen/#sv_id7000000569
G196: =SUM(G193:G195) -> 231.7024
E198: Summa | G198: =SUM(G193:G195) -> 231.7024
